Body,Body Name,Supplier Id,Payment Date,Transaction Number,Amount,Supplier Name,Expenses Area,Expenses Type
37UE,Gedling Borough Council,1000782,24/07/2017,40660889,501.37 ,DENNIS EAGLE LTD,Fleet Management,Vehicle Parts
37UE,Gedling Borough Council,1002667,06/09/2017,40661163,502.40 ,DINERS CLUB INTERNATIONAL,Financial Services,Travel
37UE,Gedling Borough Council,1017156,12/06/2017,40660530,503.84 ,BOOKER,Leisure & Culture,Stock Account
37UE,Gedling Borough Council,1001558,02/06/2017,40660453,505.00 ,DUN & BRADSTREET LTD,Financial Services,Subscriptions
37UE,Gedling Borough Council,1001503,12/04/2017,40660023,505.00 ,FIT FOR WORK LIMITED,Organisational Development,Legal & Professional Services
37UE,Gedling Borough Council,1000468,12/05/2017,40660228,505.05 ,PROSPEC LIMITED,Arnold Leisure Centre,General Repairs
37UE,Gedling Borough Council,1017156,25/09/2017,40661273,505.85 ,BOOKER,Leisure & Culture,Stock Account
37UE,Gedling Borough Council,1004800,19/05/2017,40660312,508.18 ,BUNZL CLEANING & HYGIENE SUPPLIES,Redhill Leisure Centre,Cleaning & Domestic Equipment
37UE,Gedling Borough Council,1004104,24/05/2017,40660379,509.18 ,PLATTS HARRIS LTD,Fleet Management,Vehicle Parts
37UE,Gedling Borough Council,1004451,28/06/2017,40660654,510.00 ,DEM ELECTRICAL LTD,Carlton Forum Leisure Centre,General Repairs
37UE,Gedling Borough Council,1004101,31/05/2017,40660446,510.00 ,FAIRACRE SERVICES,Public Offices,Administrative Equipment
37UE,Gedling Borough Council,1017444,26/05/2017,40660382,510.00 ,FRY'S JOINERY SERVICES,Carlton Forum Leisure Centre,General Repairs
37UE,Gedling Borough Council,1005464,25/08/2017,40661086,510.00 ,WILLPOWER MACHINERY LTD T/A UKLOOS.COM,Events & Play,Events
37UE,Gedling Borough Council,1004145,12/04/2017,40660023,511.10 ,ESSENTRA SECURITY,Licencing & Hackney Carriages,Licences
37UE,Gedling Borough Council,1005678,02/08/2017,40660950,512.10 ,SHIELD IT SOLUTIONS LIMITED,Information Technology,Computing
37UE,Gedling Borough Council,1002667,07/08/2017,40660977,513.40 ,DINERS CLUB INTERNATIONAL,Financial Services,Travel
37UE,Gedling Borough Council,1002826,02/06/2017,40660453,514.50 ,REDACTED DATA,Carlton Forum Leisure Centre,Instructors Fees
37UE,Gedling Borough Council,1017523,19/07/2017,40660846,514.86 ,WATER PLUS LTD,Community Centres,Water Charges (Unmetered)
37UE,Gedling Borough Council,1006010,05/05/2017,40660159,515.00 ,NORTH KESTEVEN DISTRICT COUNCIL,Corporate Management,Subscriptions
37UE,Gedling Borough Council,1017440,22/09/2017,40661269,516.50 ,LIONS GATE INTERNATIONAL (UK) LTD,Arnold Theatre,Publicity & Promotion
37UE,Gedling Borough Council,1000205,12/07/2017,40660780,516.83 ,SEVERN TRENT WATER LTD,Community Centres,Water Charges (Unmetered)
37UE,Gedling Borough Council,1005587,02/08/2017,40660950,517.05 ,TOTAL GAS AND POWER,Public Offices,Electricity
37UE,Gedling Borough Council,1017066,12/05/2017,40660228,520.00 ,CENTRAL CONSTRUCTION (NOTTM) LTD,Richard Herrod Centre,General Repairs
37UE,Gedling Borough Council,1002088,19/07/2017,40660846,520.00 ,NETHERFIELD BOYS/GIRLS FC,Sports Development,Projects & Activities
37UE,Gedling Borough Council,1017156,18/09/2017,40661227,520.29 ,BOOKER,Arnold Theatre,General Materials
37UE,Gedling Borough Council,1017400,20/09/2017,40661255,522.00 ,REACT PROPERTY MAINTENANCE,Public Protection,Improvement Grants
37UE,Gedling Borough Council,1017523,19/07/2017,40660846,523.87 ,WATER PLUS LTD,Community Centres,Water Charges (Unmetered)
37UE,Gedling Borough Council,1017273,26/07/2017,40660896,525.00 ,COMMODORE (NOTTINGHAM) LTD,Housing Needs,Other Services
37UE,Gedling Borough Council,1005415,21/07/2017,40660852,525.00 ,HUNTINGDON PROPERTIES LTD T/A THE CLARENCE HOTEL,Housing Needs,Other Services
37UE,Gedling Borough Council,1017189,23/06/2017,40660608,525.00 ,ITS INN THE BANK,Democratic Mgt & Representation,Mayor's  Civic & Hospitality
37UE,Gedling Borough Council,1000964,10/05/2017,40660227,525.00 ,SIMPSONS CLEANING SERVICES LTD,Public Offices,General Repairs
37UE,Gedling Borough Council,1005415,12/05/2017,40660228,525.01 ,HUNTINGDON PROPERTIES LTD T/A THE CLARENCE HOTEL,Housing Needs,Other Services
37UE,Gedling Borough Council,1001223,21/06/2017,40660593,525.47 ,KONICA MINOLTA BUSINESS SOLUTIONS UK LIMITED,Central Print Room,Printing
37UE,Gedling Borough Council,1000205,17/07/2017,40660844,527.86 ,SEVERN TRENT WATER LTD,Cemeteries,Water Charges (Metered)
37UE,Gedling Borough Council,1004600,10/05/2017,40660227,528.00 ,STEVEN COOK T/A NG4 MAGAZINE,Carlton Forum Leisure Centre,D.N.A Expenditure
37UE,Gedling Borough Council,1002826,08/09/2017,40661167,529.50 ,REDACTED DATA,Carlton Forum Leisure Centre,Instructors Fees
37UE,Gedling Borough Council,1017372,25/08/2017,40661086,531.00 ,ACUMEN LTD,Redhill Leisure Centre,Quality Assurance
37UE,Gedling Borough Council,1005408,12/05/2017,40660228,533.00 ,REDESIGN CREATIONS LTD,Redhill Leisure Centre,Publicity & Promotion
37UE,Gedling Borough Council,1005469,15/09/2017,40661225,534.00 ,ASGS SECURITY SERVICES LIMITED,Carlton Forum Leisure Centre,Security Services
37UE,Gedling Borough Council,1017362,09/06/2017,40660485,534.00 ,IAN PALING LTD,Fleet Management,Operational Equipment
37UE,Gedling Borough Council,1003978,09/06/2017,40660485,534.54 ,UKACTIVE,Arnold Leisure Centre,Licences
37UE,Gedling Borough Council,1005653,03/05/2017,40660153,535.75 ,WASTEPARTS UK LTD,Fleet Management,Vehicle Parts
37UE,Gedling Borough Council,1002431,03/05/2017,40660153,535.93 ,THE IRONGATE GROUP LTD,Legal Services,Stationery
37UE,Gedling Borough Council,1003451,26/05/2017,40660382,538.75 ,NETHERFIELD FORUM,Localities,Premises Rents
37UE,Gedling Borough Council,1005456,23/06/2017,40660608,539.00 ,CHEMODEX LIMITED,Fleet Management,Fuel
37UE,Gedling Borough Council,1003158,16/08/2017,40661031,540.00 ,DJB CONTRACTS,Public Offices,Maintenance
37UE,Gedling Borough Council,1017480,04/08/2017,40660953,540.00 ,START DANCIN',The Arts & Tourism,Projects & Activities
37UE,Gedling Borough Council,1003677,25/08/2017,40661086,540.00 ,STEVE KERR PAINTING & DECORATING,Calverton Leisure Centre,General Repairs
37UE,Gedling Borough Council,1017381,19/05/2017,40660312,545.00 ,REDACTED DATA,Arnold Theatre,Instructors Fees
37UE,Gedling Borough Council,1004461,20/09/2017,40661255,545.75 ,S.J.S. PLUMBING HEATING & PROPERTY SERVICES,Parks,General Repairs
37UE,Gedling Borough Council,1000001,18/09/2017,40661227,550.00 ,GEDLING SOUTHBANK FC,Community Grants,Grants
37UE,Gedling Borough Council,1017065,07/07/2017,40660736,550.44 ,MARSTONS PLC,Leisure & Culture,Stock Account
37UE,Gedling Borough Council,1005961,17/05/2017,40660270,552.00 ,CSG LIMITED,Information Technology,Software Licence & Maintenance
37UE,Gedling Borough Council,1017372,21/06/2017,40660593,553.50 ,ACUMEN LTD,Richard Herrod Centre,Quality Assurance
37UE,Gedling Borough Council,1000205,28/04/2017,40660124,554.46 ,SEVERN TRENT WATER LTD,Arnold Leisure Centre,Water Charges (Metered)
37UE,Gedling Borough Council,1005456,26/05/2017,40660382,555.00 ,CHEMODEX LIMITED,Fleet Management,Fuel
37UE,Gedling Borough Council,1000902,08/09/2017,40661167,556.45 ,ADT FIRE AND SECURITY PLC,Public Offices,Administrative Equipment
37UE,Gedling Borough Council,1017188,16/06/2017,40660537,558.00 ,KABOOM PRINT & DISTRIBUTION,Localities,Projects & Activities
37UE,Gedling Borough Council,1005408,18/08/2017,40661036,558.00 ,REDESIGN CREATIONS LTD,Richard Herrod Centre,Advertising
37UE,Gedling Borough Council,1002189,13/09/2017,40661223,559.78 ,SPORTSAFE UK LTD,Carlton Forum Leisure Centre,Operational Equipment
37UE,Gedling Borough Council,1001271,07/07/2017,40660736,559.90 ,NCC SUPPLIES,Calverton Leisure Centre,General Materials
37UE,Gedling Borough Council,1000833,13/09/2017,40661223,559.94 ,COLONEL FRANK SEELY ACADEMY,Calverton Leisure Centre,Water Charges (Metered)
37UE,Gedling Borough Council,1003280,11/08/2017,40660995,560.00 ,A R MUSSON - CONTRACTOR,Parks,Operational Equipment
37UE,Gedling Borough Council,1017300,09/08/2017,40660984,560.00 ,ASCOT HOTEL,Housing Needs,Other Services
37UE,Gedling Borough Council,1000231,27/09/2017,40661317,560.00 ,G.B.C. SPORTS & SOCIAL CLUB,Public Offices,Grants
37UE,Gedling Borough Council,1005415,14/07/2017,40660789,560.00 ,HUNTINGDON PROPERTIES LTD T/A THE CLARENCE HOTEL,Housing Needs,Other Services
37UE,Gedling Borough Council,1005945,23/08/2017,40661078,560.00 ,MATRIX CONTROL SOLUTIONS LTD,Carlton Forum Leisure Centre,Operational Equipment
37UE,Gedling Borough Council,1017474,10/05/2017,40660227,560.00 ,PREMIER SURVEYS LTD,Estates & Valuation,Consultancy Fees
37UE,Gedling Borough Council,1005587,22/05/2017,40660365,-675.61 ,TOTAL GAS AND POWER,Public Offices,Electricity
37UE,Gedling Borough Council,1005587,22/05/2017,40660365,"-3,630.36 ",TOTAL GAS AND POWER,Public Offices,Electricity
37UE,Gedling Borough Council,1005587,22/05/2017,40660365,563.01 ,TOTAL GAS AND POWER,Public Offices,Electricity
37UE,Gedling Borough Council,1004800,05/05/2017,40660159,564.10 ,BUNZL CLEANING & HYGIENE SUPPLIES,Carlton Forum Leisure Centre,Cleaning & Domestic Equipment
37UE,Gedling Borough Council,1017332,10/04/2017,40660018,565.00 ,TAYLOR DOORS,Corporate Administration,Maintenance
37UE,Gedling Borough Council,1006033,08/05/2017,40660162,565.13 ,WORLD OF WORKWEAR,Carlton Forum Leisure Centre,Protective Clothing
37UE,Gedling Borough Council,1002955,23/06/2017,40660608,566.40 ,FRONTLINE RECRUITMENT NOTTINGHAM LTD,Waste Management,Agency Staff
37UE,Gedling Borough Council,1000982,02/08/2017,40660950,568.50 ,ARDEN WINCH & CO LTD,Waste Management,Protective Clothing
37UE,Gedling Borough Council,1005587,03/07/2017,40660702,569.70 ,TOTAL GAS AND POWER,Public Offices,Electricity
37UE,Gedling Borough Council,1000612,26/05/2017,40660382,570.00 ,KEEPSAFE SECURITY INSTALLATIONS LTD,Public Offices,Administrative Equipment
37UE,Gedling Borough Council,1004971,04/08/2017,40660953,570.41 ,ACCESS SERVICE AND REPAIR LTD,Richard Herrod Centre,General Repairs
37UE,Gedling Borough Council,1001739,14/07/2017,40660789,570.64 ,P S MARSDEN (LAWNMOWER SERVICES) LTD,Fleet Management,Vehicle Parts
37UE,Gedling Borough Council,1001739,19/04/2017,40660029,571.30 ,P S MARSDEN (LAWNMOWER SERVICES) LTD,Fleet Management,Vehicle Parts
37UE,Gedling Borough Council,1017372,17/07/2017,40660844,572.80 ,ACUMEN LTD,Richard Herrod Centre,Quality Assurance
37UE,Gedling Borough Council,1000201,05/07/2017,40660706,573.54 ,UNIVAR LTD,Calverton Leisure Centre,Chemicals
37UE,Gedling Borough Council,1000490,17/05/2017,40660270,573.95 ,SPALDINGS U.K. LTD.,Fleet Management,Vehicle Parts
37UE,Gedling Borough Council,1005985,07/06/2017,40660482,575.00 ,EAST MIDLANDS COUNCILS (NOTTINGHAM CITY COUNCIL),Environmental Protection,Course Fees
37UE,Gedling Borough Council,1017339,14/07/2017,40660789,575.00 ,HEATON PLANNING,Estates & Valuation,Consultancy Fees
37UE,Gedling Borough Council,1000440,09/08/2017,40660984,576.00 ,NOTTINGHAMSHIRE COUNTY COUNCIL,Land Charges,Other Services
37UE,Gedling Borough Council,1001675,26/07/2017,40660896,576.12 ,CIVICA UK LTD,Revenues-Local Taxation,Computing
37UE,Gedling Borough Council,1001783,20/09/2017,40661255,579.00 ,APSE,Corporate Management,Conferences - Employees
37UE,Gedling Borough Council,1001223,20/09/2017,40661255,579.31 ,KONICA MINOLTA BUSINESS SOLUTIONS UK LIMITED,Central Print Room,Printing
37UE,Gedling Borough Council,1005587,07/08/2017,40660977,579.88 ,TOTAL GAS AND POWER,Parks,Electricity
37UE,Gedling Borough Council,1017381,12/07/2017,40660780,580.00 ,REDACTED DATA,Arnold Theatre,Instructors Fees
37UE,Gedling Borough Council,1003485,05/06/2017,40660476,580.00 ,SCHNEIDER ELECTRIC LTD,Arnold Leisure Centre,Operational Equipment
37UE,Gedling Borough Council,1002374,16/08/2017,40661031,580.00 ,WALL OF FRAMES,Localities,Projects & Activities
37UE,Gedling Borough Council,1000833,31/05/2017,40660446,583.03 ,COLONEL FRANK SEELY ACADEMY,Calverton Leisure Centre,Water Charges (Metered)
37UE,Gedling Borough Council,1004461,23/06/2017,40660608,583.84 ,S.J.S. PLUMBING HEATING & PROPERTY SERVICES,Parks,General Repairs
37UE,Gedling Borough Council,1000188,12/04/2017,40660023,585.00 ,DAYBROOK BAPTIST CHURCH,Public Offices,Premises Rents
37UE,Gedling Borough Council,1000188,19/07/2017,40660846,585.00 ,DAYBROOK BAPTIST CHURCH,Public Offices,Premises Rents
37UE,Gedling Borough Council,1017530,02/08/2017,40660950,585.00 ,DEAN MCKAY MOVING & STORAGE LIMITED,Housing Needs,Other Services
37UE,Gedling Borough Council,1000205,21/04/2017,40660068,586.42 ,SEVERN TRENT WATER LTD,Cemeteries,Drainage Charges
37UE,Gedling Borough Council,1000001,07/06/2017,40660482,586.60 ,BAROQUE THEATRE COMPANY,Leisure & Culture,Theatre Ticket Payments
37UE,Gedling Borough Council,1001741,13/09/2017,40661223,588.01 ,GLOBAL FIRE SYSTEMS LTD,Fleet Management,Operational Equipment
37UE,Gedling Borough Council,1000319,28/04/2017,40660124,590.00 ,H & V SERVICES,Community Centres,General Repairs
37UE,Gedling Borough Council,1002955,15/09/2017,40661225,590.47 ,FRONTLINE RECRUITMENT NOTTINGHAM LTD,Waste Management,Agency Staff
37UE,Gedling Borough Council,1000112,11/08/2017,40660995,591.00 ,NOTTINGHAM ORGAN SOCIETY,Leisure & Culture,Theatre Ticket Payments
37UE,Gedling Borough Council,1003485,16/08/2017,40661031,593.37 ,SCHNEIDER ELECTRIC LTD,Public Offices,Maintenance
37UE,Gedling Borough Council,1000024,30/08/2017,40661125,594.00 ,LEE GLASS & GLAZING (NOTTM),Public Offices,General Repairs
37UE,Gedling Borough Council,1000190,05/05/2017,40660159,594.00 ,RLSS UK ENTERPRISES LTD T/A LIFESAVERS DIRECT,Arnold Leisure Centre,General Materials
37UE,Gedling Borough Council,1004359,05/05/2017,40660159,595.00 ,M & G SERVICES LTD,Arnold Leisure Centre,Consultancy Fees
37UE,Gedling Borough Council,1017508,28/06/2017,40660654,595.00 ,RENOVO EMPLOYMENT,Waste Management,Training Expenses
37UE,Gedling Borough Council,1000001,23/06/2017,40660612,595.00 ,THE MIGHTY SMITH SHOW ENTERTAINMENT,Localities,Projects & Activities
37UE,Gedling Borough Council,1001271,19/06/2017,40660580,595.93 ,NCC SUPPLIES,Calverton Leisure Centre,Cleaning & Domestic Equipment
37UE,Gedling Borough Council,1004782,23/06/2017,40660608,597.00 ,COMPLETE COOLING SERVICES LIMITED,Arnold Leisure Centre,Operational Equipment
37UE,Gedling Borough Council,1000440,26/06/2017,40660644,598.08 ,NOTTINGHAMSHIRE COUNTY COUNCIL,Organisational Development,Dept Recruitment Advertising
37UE,Gedling Borough Council,1000440,31/07/2017,40660948,598.08 ,NOTTINGHAMSHIRE COUNTY COUNCIL,Organisational Development,Dept Recruitment Advertising
37UE,Gedling Borough Council,1002501,27/09/2017,40661317,600.00 ,FLYING HIGH EXPRESSIVE ARTS COMPANY,The Arts & Tourism,Projects & Activities
37UE,Gedling Borough Council,1004359,26/04/2017,40660115,600.00 ,M & G SERVICES LTD,Building Services,Consultancy Fees
37UE,Gedling Borough Council,1000001,17/05/2017,40660297,600.00 ,NETHERFIELD FORUM,Elections,Premises Rents
37UE,Gedling Borough Council,1000001,30/06/2017,40660685,600.00 ,NETHERFIELD FORUM,Elections,Premises Rents
37UE,Gedling Borough Council,1000001,12/07/2017,40660780,600.00 ,PORCHESTER FESTIVAL COMMITTEE,Community Grants,Grants
37UE,Gedling Borough Council,1004988,15/09/2017,40661225,600.00 ,RIGBY TAYLOR LTD,Parks,General Materials
37UE,Gedling Borough Council,1000650,12/07/2017,40660780,600.00 ,WOLTERS KLUWER (UK) LTD,Health & Safety and Emergency Planning,Operational Equipment
37UE,Gedling Borough Council,1000440,14/08/2017,40661023,600.64 ,NOTTINGHAMSHIRE COUNTY COUNCIL,Organisational Development,Dept Recruitment Advertising
37UE,Gedling Borough Council,1001739,12/04/2017,40660023,600.76 ,P S MARSDEN (LAWNMOWER SERVICES) LTD,Fleet Management,Vehicle Parts
37UE,Gedling Borough Council,1000812,22/09/2017,40661269,602.13 ,MITCHELL DIESEL LIMITED,Fleet Management,Vehicle Parts
37UE,Gedling Borough Council,1005752,15/09/2017,40661225,603.75 ,REDACTED DATA,The Arts & Tourism,Projects & Activities
37UE,Gedling Borough Council,1017478,09/06/2017,40660485,605.00 ,REDACTED DATA,Arnold Theatre,Instructors Fees
37UE,Gedling Borough Council,1017254,15/09/2017,40661225,605.83 ,ENTERTAINMENT FILM DISTRIBUTORS LTD,Arnold Theatre,Publicity & Promotion
37UE,Gedling Borough Council,1000025,26/07/2017,40660896,606.63 ,J P LENNARD LTD,Arnold Leisure Centre,Operational Equipment
37UE,Gedling Borough Council,1000440,31/07/2017,40660948,607.21 ,NOTTINGHAMSHIRE COUNTY COUNCIL,Development Management,Advertising
37UE,Gedling Borough Council,1000440,26/06/2017,40660644,608.21 ,NOTTINGHAMSHIRE COUNTY COUNCIL,Development Management,Advertising
37UE,Gedling Borough Council,1000112,17/07/2017,40660844,608.50 ,NOTTINGHAM ORGAN SOCIETY,Leisure & Culture,Theatre Ticket Payments
37UE,Gedling Borough Council,1005587,29/09/2017,40661323,610.68 ,TOTAL GAS AND POWER,Public Offices,Gas
37UE,Gedling Borough Council,1000588,21/07/2017,40660852,612.00 ,A. MEHEW BUILDING SERVICES LTD,Public Offices,General Repairs
37UE,Gedling Borough Council,1017104,16/08/2017,40661031,612.00 ,JWP SERVICES,Arnold Leisure Centre,General Repairs
37UE,Gedling Borough Council,1006033,25/08/2017,40661086,612.16 ,WORLD OF WORKWEAR,Arnold Leisure Centre,Protective Clothing
37UE,Gedling Borough Council,1000490,31/07/2017,40660948,612.32 ,SPALDINGS U.K. LTD.,Fleet Management,Vehicle Parts
37UE,Gedling Borough Council,1005787,20/09/2017,40661255,613.60 ,PUBLIC HEALTH ENGLAND,"Food, Health & Safety",Other Services
37UE,Gedling Borough Council,1004104,09/08/2017,40660984,613.87 ,PLATTS HARRIS LTD,Fleet Management,Vehicle Parts
37UE,Gedling Borough Council,1000833,28/06/2017,40660654,615.13 ,COLONEL FRANK SEELY ACADEMY,Calverton Leisure Centre,Water Charges (Metered)
37UE,Gedling Borough Council,1005883,17/05/2017,40660270,617.05 ,EXCEL VENDING,Public Offices,Refreshments
37UE,Gedling Borough Council,1003486,26/05/2017,40660382,618.10 ,AIRQUEE,Calverton Leisure Centre,Operational Equipment
37UE,Gedling Borough Council,1017372,10/05/2017,40660227,618.80 ,ACUMEN LTD,Carlton Forum Leisure Centre,Quality Assurance
37UE,Gedling Borough Council,1017156,26/07/2017,40660896,619.65 ,BOOKER,Leisure & Culture,Stock Account
37UE,Gedling Borough Council,1003158,09/06/2017,40660485,620.00 ,DJB CONTRACTS,Parks,General Repairs
37UE,Gedling Borough Council,1000712,31/05/2017,40660446,620.00 ,SIEMENS PLC,Arnold Leisure Centre,Electricity
37UE,Gedling Borough Council,1017156,08/05/2017,40660162,623.58 ,BOOKER,Leisure & Culture,Stock Account
37UE,Gedling Borough Council,1000025,07/07/2017,40660736,624.23 ,J P LENNARD LTD,Calverton Leisure Centre,General Materials
37UE,Gedling Borough Council,1005158,26/05/2017,40660382,624.95 ,VWS VEHICLE WEIGHING SOLUTIONS,Fleet Management,Vehicle Parts
37UE,Gedling Borough Council,1000231,07/04/2017,40659978,625.00 ,G.B.C. SPORTS & SOCIAL CLUB,Public Offices,Grants
37UE,Gedling Borough Council,1004359,12/05/2017,40660228,625.00 ,M & G SERVICES LTD,Redhill Leisure Centre,General Repairs
37UE,Gedling Borough Council,1002431,03/05/2017,40660153,625.64 ,THE IRONGATE GROUP LTD,Redhill Leisure Centre,Stationery
37UE,Gedling Borough Council,1002417,05/05/2017,40660159,626.82 ,ORCHARD HEALTH,Health & Safety and Emergency Planning,Occupational Health Supplies
37UE,Gedling Borough Council,1017124,12/04/2017,40660023,627.00 ,REDACTED DATA,Arnold Theatre,Instructors Fees
37UE,Gedling Borough Council,1002875,23/06/2017,40660608,629.00 ,KINGSFIELD COMPUTER PRODUCTS LTD,Information Technology,Tech/Comms Equip/Consumables
37UE,Gedling Borough Council,1017372,19/05/2017,40660312,631.35 ,ACUMEN LTD,Carlton Forum Leisure Centre,Quality Assurance
37UE,Gedling Borough Council,1003124,14/07/2017,40660789,632.50 ,PFS FIRE & SECURITY LTD,Calverton Leisure Centre,General Repairs
37UE,Gedling Borough Council,1005587,31/07/2017,40660948,633.30 ,TOTAL GAS AND POWER,Richard Herrod Centre,Gas
37UE,Gedling Borough Council,1002417,14/07/2017,40660789,633.90 ,ORCHARD HEALTH,Health & Safety and Emergency Planning,Occupational Health Supplies
37UE,Gedling Borough Council,1017215,12/07/2017,40660780,634.80 ,AQUAMAT LTD,Calverton Leisure Centre,General Repairs
37UE,Gedling Borough Council,1003916,13/09/2017,40661223,636.00 ,PRINT IMAGE NETWORK LTD,Elections,Printing
37UE,Gedling Borough Council,1000154,26/07/2017,40660896,636.97 ,PHONOGRAPHIC PERFORMANCE LTD,Arnold Leisure Centre,Licences
37UE,Gedling Borough Council,1017300,03/05/2017,40660153,640.00 ,ASCOT HOTEL,Housing Needs,Other Services
37UE,Gedling Borough Council,1001270,21/04/2017,40660068,640.33 ,CHUBB FIRE AND SECURITY LTD,Community Centres,Maintenance
37UE,Gedling Borough Council,1017273,25/08/2017,40661086,641.66 ,COMMODORE (NOTTINGHAM) LTD,Housing Needs,Other Services
37UE,Gedling Borough Council,1017156,19/06/2017,40660580,642.88 ,BOOKER,Leisure & Culture,Stock Account
37UE,Gedling Borough Council,1003613,02/08/2017,40660950,644.00 ,BRITISH PARKING ASSOCIATION,Car Parks,Subscriptions
37UE,Gedling Borough Council,1005547,08/09/2017,40661167,645.00 ,M.P.H LOCKSMITH,Housing Needs,General Repairs
37UE,Gedling Borough Council,1000723,02/08/2017,40660950,645.54 ,A E INDUSTRIAL & AIR EQUIPMENT LTD,Fleet Management,Operational Equipment
37UE,Gedling Borough Council,1002955,21/06/2017,40660593,647.90 ,FRONTLINE RECRUITMENT NOTTINGHAM LTD,Street Care,Agency Staff
37UE,Gedling Borough Council,1000190,16/08/2017,40661031,648.00 ,RLSS UK ENTERPRISES LTD T/A LIFESAVERS DIRECT,Carlton Forum Leisure Centre,Course Fees
37UE,Gedling Borough Council,1017418,02/08/2017,40660950,648.66 ,LIVE & LOCAL,Arnold Theatre,Publicity & Promotion
37UE,Gedling Borough Council,1005484,21/07/2017,40660852,649.09 ,HUMBERSIDE TAIL LIFTS LTD,Fleet Management,Operational Equipment
37UE,Gedling Borough Council,1017527,02/08/2017,40660950,650.00 ,ADKAM CIC,Housing Needs,Other Services
37UE,Gedling Borough Council,1005970,25/08/2017,40661086,650.00 ,WE R HERE,Community Grants,Grants
37UE,Gedling Borough Council,1000522,12/05/2017,40660228,654.00 ,LOCAL GOVERNMENT ASSOCIATION,Corporate Finance,Subscriptions
37UE,Gedling Borough Council,1000510,26/07/2017,40660896,657.46 ,F MARTIN LTD,Parks,General Materials
37UE,Gedling Borough Council,1017362,31/05/2017,40660446,660.00 ,IAN PALING LTD,Public Offices,Operational Equipment
37UE,Gedling Borough Council,1006009,29/09/2017,40661323,660.00 ,SHORETAN LEISURE,Arnold Leisure Centre,Operational Equipment
37UE,Gedling Borough Council,1002706,12/07/2017,40660780,665.00 ,THE MILLWARD PARTNERSHIP,Building Services,Consultancy Fees
37UE,Gedling Borough Council,1005408,06/09/2017,40661163,667.00 ,REDESIGN CREATIONS LTD,Carlton Forum Leisure Centre,D.N.A Expenditure
37UE,Gedling Borough Council,1005587,29/09/2017,40661323,668.38 ,TOTAL GAS AND POWER,Richard Herrod Centre,Gas
37UE,Gedling Borough Council,1003158,30/06/2017,40660658,670.00 ,DJB CONTRACTS,Events & Play,Projects & Activities
37UE,Gedling Borough Council,1002955,14/06/2017,40660531,671.51 ,FRONTLINE RECRUITMENT NOTTINGHAM LTD,Waste Management,Agency Staff
37UE,Gedling Borough Council,1001194,11/08/2017,40660995,673.92 ,ESPO,Arnold Leisure Centre,General Materials
37UE,Gedling Borough Council,1005787,03/05/2017,40660153,674.96 ,PUBLIC HEALTH ENGLAND,"Food, Health & Safety",Other Services
37UE,Gedling Borough Council,1000112,13/09/2017,40661223,676.00 ,NOTTINGHAM ORGAN SOCIETY,Leisure & Culture,Theatre Ticket Payments
37UE,Gedling Borough Council,1000712,31/05/2017,40660446,676.00 ,SIEMENS PLC,Richard Herrod Centre,Electricity
37UE,Gedling Borough Council,1000205,28/04/2017,40660124,677.95 ,SEVERN TRENT WATER LTD,Public Offices,Water Charges (Metered)
37UE,Gedling Borough Council,1005644,03/05/2017,40660153,678.50 ,SISIS DIVISION OF HOWARDSON LTD,Fleet Management,Vehicle Parts
37UE,Gedling Borough Council,1017523,25/08/2017,40661086,678.55 ,WATER PLUS LTD,Public Offices,Water Charges (Metered)
37UE,Gedling Borough Council,1002431,31/05/2017,40660446,679.39 ,THE IRONGATE GROUP LTD,Carlton Forum Leisure Centre,General Materials
37UE,Gedling Borough Council,1000205,28/06/2017,40660654,679.95 ,SEVERN TRENT WATER LTD,Public Offices,Water Charges (Metered)
37UE,Gedling Borough Council,1005372,24/05/2017,40660379,680.00 ,HOUSE CLEARANCE SPECIALISTS LTD,Public Protection,Rechargeable works
37UE,Gedling Borough Council,1005249,05/07/2017,40660706,680.00 ,INSTITUTE OF SWIMMING,Arnold Leisure Centre,Course Fees
37UE,Gedling Borough Council,1005086,21/07/2017,40660852,680.00 ,THE JOKER ENTERTAINMENT,Events & Play,Projects & Activities
37UE,Gedling Borough Council,1006047,14/08/2017,40661023,684.00 ,SECURITY PLUS + LIMITED,Customer Services,Security Services
37UE,Gedling Borough Council,1004359,24/07/2017,40660889,685.00 ,M & G SERVICES LTD,Carlton Forum Leisure Centre,General Repairs
37UE,Gedling Borough Council,1001214,16/06/2017,40660537,685.09 ,PERRYS EAST MIDLANDS LTD,Fleet Management,Vehicle Parts
37UE,Gedling Borough Council,1000822,16/08/2017,40661031,685.53 ,CENTRAL SECURITY SYSTEMS LIMITED,Comm Protection & Dog Control,Operational Equipment
37UE,Gedling Borough Council,1000767,13/09/2017,40661223,685.64 ,JOHNSTON SWEEPERS LTD,Fleet Management,Vehicle Parts
37UE,Gedling Borough Council,1001739,30/06/2017,40660658,685.93 ,P S MARSDEN (LAWNMOWER SERVICES) LTD,Fleet Management,Vehicle Parts
37UE,Gedling Borough Council,1017074,15/09/2017,40661225,690.00 ,ASHLEY LEISURE SERVICES LTD,Carlton Forum Leisure Centre,General Repairs
37UE,Gedling Borough Council,1017381,09/08/2017,40660984,690.00 ,REDACTED DATA,Arnold Theatre,Instructors Fees
37UE,Gedling Borough Council,1000833,02/08/2017,40660950,690.30 ,COLONEL FRANK SEELY ACADEMY,Calverton Leisure Centre,Water Charges (Metered)
37UE,Gedling Borough Council,1005484,30/08/2017,40661125,692.79 ,HUMBERSIDE TAIL LIFTS LTD,Fleet Management,Vehicle Parts
37UE,Gedling Borough Council,1001327,23/08/2017,40661078,693.16 ,STERLING HYDROTECH LTD,Carlton Forum Leisure Centre,General Repairs
37UE,Gedling Borough Council,1005587,26/06/2017,40660644,694.62 ,TOTAL GAS AND POWER,Public Offices,Electricity
37UE,Gedling Borough Council,1005587,29/09/2017,40661323,694.73 ,TOTAL GAS AND POWER,Arnold Leisure Centre,Gas
37UE,Gedling Borough Council,1001380,12/05/2017,40660228,694.88 ,SOUTHERN ELECTRIC,Parks,Electricity
37UE,Gedling Borough Council,1000588,21/07/2017,40660852,698.00 ,A. MEHEW BUILDING SERVICES LTD,Public Offices,Maintenance
37UE,Gedling Borough Council,1001310,27/09/2017,40661317,699.00 ,SNAP SURVEYS LTD,Information Technology,Software Licence & Maintenance
37UE,Gedling Borough Council,1017315,08/09/2017,40661167,699.60 ,KAN LIMITED,Arnold Theatre,Publicity & Promotion
37UE,Gedling Borough Council,1000588,05/05/2017,40660159,700.00 ,A. MEHEW BUILDING SERVICES LTD,Redhill Leisure Centre,Base Budget Maintenance
37UE,Gedling Borough Council,1001046,12/05/2017,40660228,700.00 ,ARNOLD METHODIST CHURCH,Community Grants,Grants
37UE,Gedling Borough Council,1005831,27/09/2017,40661317,700.00 ,BEN HORTON - BUILDER,Calverton Leisure Centre,General Repairs
37UE,Gedling Borough Council,1017470,12/07/2017,40660780,700.00 ,DENIS G HILL HERITAGE CONSULTANT,The Arts & Tourism,Publicity & Promotion
37UE,Gedling Borough Council,1000736,26/07/2017,40660896,700.00 ,GEDLING PLAY FORUM,Community Grants,Grants
37UE,Gedling Borough Council,1001032,09/06/2017,40660485,700.00 ,PORTAKABIN LTD,Elections,Premises Rents
37UE,Gedling Borough Council,1005970,09/08/2017,40660984,700.00 ,WE R HERE,Community Grants,Grants
37UE,Gedling Borough Council,1004461,17/05/2017,40660270,700.66 ,S.J.S. PLUMBING HEATING & PROPERTY SERVICES,Public Offices,General Repairs
37UE,Gedling Borough Council,1000545,31/07/2017,40660948,704.36 ,PORTMAN INDUSTRIES LTD T/A GENUINE SOLUTIONS,Waste Management,Protective Clothing
37UE,Gedling Borough Council,1005587,08/05/2017,40660162,706.26 ,TOTAL GAS AND POWER,Community Centres,Gas
37UE,Gedling Borough Council,1002667,07/07/2017,40660736,708.50 ,DINERS CLUB INTERNATIONAL,Financial Services,Travel
37UE,Gedling Borough Council,1005587,22/05/2017,40660365,708.79 ,TOTAL GAS AND POWER,Disabled Grants,Electricity
37UE,Gedling Borough Council,1005587,30/08/2017,40661125,709.18 ,TOTAL GAS AND POWER,Arnold Leisure Centre,Gas
37UE,Gedling Borough Council,1000151,13/09/2017,40661223,709.61 ,THE PERFORMING RIGHT SOCIETY LTD,Arnold Theatre,Licences
37UE,Gedling Borough Council,1002088,19/07/2017,40660846,710.00 ,NETHERFIELD BOYS/GIRLS FC,Localities,Projects & Activities
37UE,Gedling Borough Council,1000791,03/05/2017,40660153,717.69 ,AEBI SCHMIDT UK lTD,Fleet Management,Vehicle Parts
37UE,Gedling Borough Council,1005456,06/09/2017,40661163,718.63 ,CHEMODEX LIMITED,Fleet Management,Fuel
37UE,Gedling Borough Council,1004782,16/06/2017,40660537,719.00 ,COMPLETE COOLING SERVICES LIMITED,Carlton Forum Leisure Centre,Operational Equipment
37UE,Gedling Borough Council,1000001,17/05/2017,40660285,720.00 ,GEDLING HOMES,Elections,Premises Rents
37UE,Gedling Borough Council,1000001,30/06/2017,40660673,720.00 ,GEDLING HOMES,Elections,Premises Rents
37UE,Gedling Borough Council,1017189,14/07/2017,40660789,720.00 ,ITS INN THE BANK,Organisational Development,Projects & Activities
37UE,Gedling Borough Council,1017529,07/08/2017,40660977,720.00 ,MR JOHN CAMPBELL - LEGAL SERVICES,Legal Services,Legal & Professional Services
37UE,Gedling Borough Council,1001279,28/07/2017,40660914,724.86 ,THE REDHILL ACADEMY,Redhill Leisure Centre,Water Charges (Metered)
37UE,Gedling Borough Council,1001327,06/09/2017,40661163,725.28 ,STERLING HYDROTECH LTD,Carlton Forum Leisure Centre,General Repairs
37UE,Gedling Borough Council,1003978,28/04/2017,40660124,727.90 ,UKACTIVE,Redhill Leisure Centre,Projects & Activities
37UE,Gedling Borough Council,1000244,18/08/2017,40661036,728.21 ,SWEET & MAXWELL LTD.,Legal Services,Books & Publications
37UE,Gedling Borough Council,1000151,28/06/2017,40660654,729.25 ,THE PERFORMING RIGHT SOCIETY LTD,Arnold Theatre,Licences
37UE,Gedling Borough Council,1000734,19/07/2017,40660846,730.39 ,PARTIC MOTOR SPARES LTD.,Fleet Management,Vehicle Parts
37UE,Gedling Borough Council,1000001,05/07/2017,40660711,731.00 ,NEW YOUTH THEATRE,Leisure & Culture,Theatre Ticket Payments
37UE,Gedling Borough Council,1005885,21/08/2017,40661066,731.40 ,CARLTON DESIGN & FABRICATION LTD,Public Protection,Improvement Grants
37UE,Gedling Borough Council,1003571,30/06/2017,40660659,732.00 ,CIPD,Organisational Development,Professional Fees{ret.incentv}
37UE,Gedling Borough Council,1005415,07/07/2017,40660736,735.00 ,HUNTINGDON PROPERTIES LTD T/A THE CLARENCE HOTEL,Housing Needs,Other Services
37UE,Gedling Borough Council,1004418,17/07/2017,40660844,735.00 ,SYSTEM CELL LTD,Housing Benefit Administration,Printing
37UE,Gedling Borough Council,1004800,23/08/2017,40661078,735.96 ,BUNZL CLEANING & HYGIENE SUPPLIES,Public Offices,Cleaning & Domestic Equipment
37UE,Gedling Borough Council,1005456,11/08/2017,40660995,740.00 ,CHEMODEX LIMITED,Fleet Management,Fuel
37UE,Gedling Borough Council,1003498,12/05/2017,40660228,740.00 ,INTEGRA ASSOCIATES,Financial Services,Consultancy Fees
37UE,Gedling Borough Council,1005715,28/07/2017,40660914,740.00 ,XPRESS SOFTWARE SOLUTIONS LTD,Elections,Other Services
37UE,Gedling Borough Council,1002955,02/06/2017,40660453,741.11 ,FRONTLINE RECRUITMENT NOTTINGHAM LTD,Waste Management,Agency Staff
37UE,Gedling Borough Council,1000001,26/07/2017,40660913,742.00 ,YORKSHIRE WILDLIFE PARK,Localities,Projects & Activities
37UE,Gedling Borough Council,1000020,19/04/2017,40660029,744.00 ,LAMBLEY PARISH COUNCIL,Community Grants,Grants
37UE,Gedling Borough Council,1017189,04/08/2017,40660953,750.00 ,ITS INN THE BANK,Localities,Projects & Activities
37UE,Gedling Borough Council,1001424,26/07/2017,40660896,750.00 ,NEWSTEAD MINERS WELFARE TRUST,Community Grants,Grants
37UE,Gedling Borough Council,1017538,30/08/2017,40661125,750.00 ,RHYS HUDSON - GRAPHIC DESIGNER,Carlton Forum Leisure Centre,D.N.A Expenditure
37UE,Gedling Borough Council,1004800,22/09/2017,40661269,750.07 ,BUNZL CLEANING & HYGIENE SUPPLIES,Public Offices,Cleaning & Domestic Equipment
37UE,Gedling Borough Council,1017065,30/08/2017,40661125,751.11 ,MARSTONS PLC,Leisure & Culture,Stock Account
37UE,Gedling Borough Council,1000982,28/07/2017,40660914,751.20 ,ARDEN WINCH & CO LTD,Waste Management,Protective Clothing
37UE,Gedling Borough Council,1000112,12/04/2017,40660023,759.00 ,NOTTINGHAM ORGAN SOCIETY,Leisure & Culture,Theatre Ticket Payments
37UE,Gedling Borough Council,1004888,29/09/2017,40661323,760.00 ,PARAMOUNT  HOTEL,Housing Needs,Other Services
37UE,Gedling Borough Council,1003359,04/08/2017,40660953,766.23 ,DERBY AUTO ELECTRICAL SERVICES LTD,Fleet Management,Vehicle Parts
37UE,Gedling Borough Council,1000191,04/08/2017,40660953,767.52 ,ROYAL MAIL,Elections,Postages
37UE,Gedling Borough Council,1000191,04/08/2017,40660953,767.52 ,ROYAL MAIL,Elections,Postages
37UE,Gedling Borough Council,1004723,29/09/2017,40661323,767.87 ,NATURESCAPE BRITISH WILD FLOWERS,Parks,Projects & Activities
37UE,Gedling Borough Council,1004160,09/08/2017,40660984,770.00 ,CITY REWINDS & DRIVES LTD,Carlton Forum Leisure Centre,Joint Use maintenance
37UE,Gedling Borough Council,1017418,09/06/2017,40660485,770.00 ,LIVE & LOCAL,Arnold Theatre,Publicity & Promotion
37UE,Gedling Borough Council,1004359,12/04/2017,40660023,775.00 ,M & G SERVICES LTD,Street Care,Other Services
37UE,Gedling Borough Council,1005587,08/05/2017,40660162,776.47 ,TOTAL GAS AND POWER,Arnold Leisure Centre,Gas
37UE,Gedling Borough Council,1017444,04/08/2017,40660953,778.00 ,FRY'S JOINERY SERVICES,Carlton Forum Leisure Centre,General Repairs
37UE,Gedling Borough Council,1003925,21/08/2017,40661066,778.76 ,GB SPORT AND LEISURE LTD,Parks,General Repairs
37UE,Gedling Borough Council,1017478,10/05/2017,40660227,780.00 ,REDACTED DATA,Arnold Theatre,Instructors Fees
37UE,Gedling Borough Council,1005595,10/05/2017,40660227,784.00 ,1ST AID TRAINING CENTRE,Health & Safety and Emergency Planning,Course Fees
37UE,Gedling Borough Council,1005587,02/08/2017,40660950,785.93 ,TOTAL GAS AND POWER,Public Offices,Electricity
37UE,Gedling Borough Council,1004461,07/07/2017,40660736,786.31 ,S.J.S. PLUMBING HEATING & PROPERTY SERVICES,Public Offices,General Repairs
37UE,Gedling Borough Council,1000441,28/04/2017,40660124,790.00 ,SLACK & CO FLOORCOVERINGS LTD,Redhill Leisure Centre,Joint Use maintenance
37UE,Gedling Borough Council,1002325,28/07/2017,40660914,790.00 ,UNIVERSITY OF DERBY,Environmental Protection,Course Fees
37UE,Gedling Borough Council,1000791,19/07/2017,40660846,792.00 ,AEBI SCHMIDT UK lTD,Fleet Management,Vehicle Parts
37UE,Gedling Borough Council,1002417,22/09/2017,40661269,794.70 ,ORCHARD HEALTH,Health & Safety and Emergency Planning,Occupational Health Supplies
37UE,Gedling Borough Council,1002854,30/06/2017,40660658,795.00 ,CONTACT VOICE & DATA LTD,Carlton Forum Leisure Centre,Telephones
37UE,Gedling Borough Council,1006000,09/06/2017,40660485,797.00 ,HAYMARKET SUBSCRIPTIONS,Environmental Protection,Books & Publications
37UE,Gedling Borough Council,1002431,02/08/2017,40660950,797.09 ,THE IRONGATE GROUP LTD,Elections,Stationery
37UE,Gedling Borough Council,1001327,16/06/2017,40660537,797.30 ,STERLING HYDROTECH LTD,Carlton Forum Leisure Centre,General Repairs
37UE,Gedling Borough Council,1005587,02/08/2017,40660950,797.96 ,TOTAL GAS AND POWER,Parks,Electricity
37UE,Gedling Borough Council,1005408,07/08/2017,40660977,798.00 ,REDESIGN CREATIONS LTD,Richard Herrod Centre,Advertising
37UE,Gedling Borough Council,1006001,01/09/2017,40661133,799.00 ,JGP RESOURCING LIMITED,Organisational Development,Dept Recruitment Advertising
37UE,Gedling Borough Council,1017441,07/06/2017,40660482,800.00 ,4 D TREE SURVEY LTD,Parks,External Contractor
37UE,Gedling Borough Council,1000001,12/05/2017,40660228,800.00 ,CALVERTON PARK BOWLING CLUB,Community Grants,Grants
37UE,Gedling Borough Council,1017066,12/05/2017,40660228,800.00 ,CENTRAL CONSTRUCTION (NOTTM) LTD,Richard Herrod Centre,General Materials
37UE,Gedling Borough Council,1000097,19/04/2017,40660029,800.00 ,NEWARK & SHERWOOD DISTRICT COUNCIL,Health & Safety and Emergency Planning,Payments To Other Local Authorities
37UE,Gedling Borough Council,1017505,25/08/2017,40661086,800.00 ,QUANTUM THEATRE,Parks,Projects & Activities
37UE,Gedling Borough Council,1000001,28/06/2017,40660656,800.00 ,THE SOUL OUTLAWS,Events & Play,Projects & Activities
37UE,Gedling Borough Council,1002417,16/06/2017,40660537,804.75 ,ORCHARD HEALTH,Health & Safety and Emergency Planning,Occupational Health Supplies
37UE,Gedling Borough Council,1004104,08/09/2017,40661167,805.36 ,PLATTS HARRIS LTD,Fleet Management,Vehicle Parts
37UE,Gedling Borough Council,1001079,21/06/2017,40660590,809.00 ,THE IMPROVEMENT & DEVELOPMENT AGENCY,Information Technology,Software Licence & Maintenance
37UE,Gedling Borough Council,1003158,23/08/2017,40661078,810.00 ,DJB CONTRACTS,Parks,General Repairs
37UE,Gedling Borough Council,1001578,31/05/2017,40660446,810.24 ,PHOENIX SOFTWARE,Information Technology,Acquisitions Via Replacement Fund
37UE,Gedling Borough Council,1005756,07/07/2017,40660736,813.33 ,REDACTED DATA,Arnold Leisure Centre,Instructors Fees
37UE,Gedling Borough Council,1002142,02/06/2017,40660453,814.85 ,THE CARLTON ACADEMY,Carlton Forum Leisure Centre,Water Charges (Metered)
37UE,Gedling Borough Council,1000072,14/06/2017,40660531,816.27 ,BT PLC,Financial Services,Phones
37UE,Gedling Borough Council,1005587,31/07/2017,40660948,817.42 ,TOTAL GAS AND POWER,Public Offices,Gas
37UE,Gedling Borough Council,1003710,30/06/2017,40660658,822.00 ,GREENAWAY AMENITY LIMITED,Parks,General Materials
37UE,Gedling Borough Council,1000588,11/08/2017,40660995,825.00 ,A. MEHEW BUILDING SERVICES LTD,Carlton Forum Leisure Centre,General Repairs
37UE,Gedling Borough Council,1000024,07/06/2017,40660482,825.00 ,LEE GLASS & GLAZING (NOTTM),Public Protection,Improvement Grants
37UE,Gedling Borough Council,1000791,17/05/2017,40660270,826.35 ,AEBI SCHMIDT UK lTD,Fleet Management,Vehicle Parts
37UE,Gedling Borough Council,1017400,03/05/2017,40660153,830.00 ,REACT PROPERTY MAINTENANCE,Comm Protection & Dog Control,Projects & Activities
37UE,Gedling Borough Council,1000948,15/09/2017,40661225,832.00 ,ARNOLD ELECTRICAL,Arnold Leisure Centre,General Repairs
37UE,Gedling Borough Council,1004705,29/09/2017,40661323,836.75 ,BROOKFORGE LTD,Arnold Leisure Centre,Operational Equipment
37UE,Gedling Borough Council,1017376,14/07/2017,40660789,836.75 ,IKEN BUSINESS LTD,Legal Services,Consultancy Fees
37UE,Gedling Borough Council,1004929,27/09/2017,40661317,837.00 ,BROWN ADVERTISING AND DESIGN,Car Parks,Stationery
37UE,Gedling Borough Council,1003853,15/09/2017,40661225,840.00 ,CDS ASSISTIVE TECHNOLOGY LTD,Public Protection,Improvement Grants
37UE,Gedling Borough Council,1006073,29/09/2017,40661323,840.00 ,EMEC ECOLOGY,Parks,External Contractor
37UE,Gedling Borough Council,1005587,03/07/2017,40660702,841.93 ,TOTAL GAS AND POWER,Public Offices,Electricity
37UE,Gedling Borough Council,1000588,12/04/2017,40660023,847.00 ,A. MEHEW BUILDING SERVICES LTD,Public Offices,General Repairs
37UE,Gedling Borough Council,1000027,15/09/2017,40661225,847.14 ,SWIM ENGLAND,Leisure & Culture,Stock Account
37UE,Gedling Borough Council,1017378,24/05/2017,40660379,848.40 ,MF SAFETY & WORKWEAR,Waste Management,Protective Clothing
37UE,Gedling Borough Council,1005661,24/04/2017,40660076,850.00 ,HOWARD WARD ASSOCIATES,Building Services,Consultancy Fees
37UE,Gedling Borough Council,1001032,14/07/2017,40660789,850.00 ,PORTAKABIN LTD,Elections,Premises Rents
37UE,Gedling Borough Council,1017381,08/09/2017,40661167,850.00 ,REDACTED DATA,Arnold Theatre,Instructors Fees
37UE,Gedling Borough Council,1002618,05/05/2017,40660159,850.00 ,UK CONTAINER MAINTENANCE LTD,Sustainability & Asset Management,Stock Account
37UE,Gedling Borough Council,1004800,07/07/2017,40660736,852.60 ,BUNZL CLEANING & HYGIENE SUPPLIES,Public Offices,Cleaning & Domestic Equipment
37UE,Gedling Borough Council,1005076,03/05/2017,40660153,855.41 ,STM ENVIRONMENTAL LTD,Environmental Protection,Contaminated Land
37UE,Gedling Borough Council,1017259,06/09/2017,40661163,855.46 ,UNIVERSAL PICTURES INTERNATIONAL UK AND EIRE LTD,Arnold Theatre,Publicity & Promotion
37UE,Gedling Borough Council,1000941,08/05/2017,40660162,857.00 ,THE CHARTERED INSTITUTE OF WASTE MANAGEMENT,Waste Management,Subscriptions
37UE,Gedling Borough Council,1017299,05/05/2017,40660159,858.00 ,GELDARDS LLP,Legal Services,Legal & Professional Services
37UE,Gedling Borough Council,1000151,12/06/2017,40660530,858.41 ,THE PERFORMING RIGHT SOCIETY LTD,Community Centres,Licences
37UE,Gedling Borough Council,1017358,16/08/2017,40661031,860.00 ,INFORM CPI LTD,Revenues-Local Taxation,Computing
37UE,Gedling Borough Council,1017065,04/08/2017,40660953,861.10 ,MARSTONS PLC,Leisure & Culture,Stock Account
37UE,Gedling Borough Council,1002618,18/08/2017,40661036,871.30 ,UK CONTAINER MAINTENANCE LTD,Waste Services,Stock Account
37UE,Gedling Borough Council,1005415,30/06/2017,40660658,875.00 ,HUNTINGDON PROPERTIES LTD T/A THE CLARENCE HOTEL,Housing Needs,Other Services
37UE,Gedling Borough Council,1005684,14/07/2017,40660789,875.00 ,PRINT IMAGE FACILITIES LLP,Elections,Printing
37UE,Gedling Borough Council,1001766,14/07/2017,40660789,877.00 ,DUKERIES ENTERTAINMENTS LIMITED,Richard Herrod Centre,Publicity & Promotion
37UE,Gedling Borough Council,1000251,08/05/2017,40660162,877.00 ,LEXISNEXIS BUTTERWORTHS,Legal Services,Books & Publications
37UE,Gedling Borough Council,1017065,15/09/2017,40661225,877.82 ,MARSTONS PLC,Leisure & Culture,Stock Account
37UE,Gedling Borough Council,1000567,03/07/2017,40660702,878.00 ,BROXAP LTD,Street Care,Maintenance
37UE,Gedling Borough Council,1002955,11/08/2017,40660995,878.40 ,FRONTLINE RECRUITMENT NOTTINGHAM LTD,Waste Management,Agency Staff
37UE,Gedling Borough Council,1004160,02/08/2017,40660950,880.00 ,CITY REWINDS & DRIVES LTD,Carlton Forum Leisure Centre,Joint Use maintenance
37UE,Gedling Borough Council,1000072,13/09/2017,40661223,880.94 ,BT PLC,Financial Services,Phones
37UE,Gedling Borough Council,1001223,24/05/2017,40660379,881.62 ,KONICA MINOLTA BUSINESS SOLUTIONS UK LIMITED,Central Print Room,Printing
37UE,Gedling Borough Council,1002142,05/05/2017,40660159,883.01 ,THE CARLTON ACADEMY,Carlton Forum Leisure Centre,Water Charges (Metered)
37UE,Gedling Borough Council,1005587,03/07/2017,40660702,885.38 ,TOTAL GAS AND POWER,Parks,Electricity
37UE,Gedling Borough Council,1017065,16/06/2017,40660537,895.59 ,MARSTONS PLC,Leisure & Culture,Stock Account
37UE,Gedling Borough Council,1005593,18/09/2017,40661227,895.77 ,PROBRUSH T/A NORTHERN MUNICIPAL SPARES LTD,Street Care,Operational Equipment
37UE,Gedling Borough Council,1005587,28/04/2017,40660124,895.91 ,TOTAL GAS AND POWER,Public Offices,Electricity
37UE,Gedling Borough Council,1005587,01/09/2017,40661133,897.97 ,TOTAL GAS AND POWER,Public Offices,Electricity
37UE,Gedling Borough Council,1000734,12/04/2017,40660023,898.18 ,PARTIC MOTOR SPARES LTD.,Fleet Management,Vehicle Parts
37UE,Gedling Borough Council,1017523,27/09/2017,40661317,898.28 ,WATER PLUS LTD,Public Offices,Water Charges (Metered)
37UE,Gedling Borough Council,1000001,17/05/2017,40660270,900.00 ,CHRISTOPHER QUINN PERFORMANCE,Arnold Theatre,Publicity & Promotion
37UE,Gedling Borough Council,1017276,26/07/2017,40660896,900.00 ,COLSPAR ENVIRONMENTAL SERVICES LTD,Street Care,Other Services
37UE,Gedling Borough Council,1001766,21/07/2017,40660852,900.00 ,DUKERIES ENTERTAINMENTS LIMITED,Richard Herrod Centre,Publicity & Promotion
37UE,Gedling Borough Council,1017358,23/08/2017,40661078,900.00 ,INFORM CPI LTD,Revenues-Local Taxation,Computing
37UE,Gedling Borough Council,1006064,30/08/2017,40661125,900.00 ,PROACTIS GROUP LTD,Financial Services,Consultancy Fees
37UE,Gedling Borough Council,1003677,15/09/2017,40661225,900.00 ,STEVE KERR PAINTING & DECORATING,Arnold Leisure Centre,General Materials
37UE,Gedling Borough Council,1000782,26/04/2017,40660115,901.03 ,DENNIS EAGLE LTD,Fleet Management,Vehicle Parts
37UE,Gedling Borough Council,1000319,05/07/2017,40660706,901.93 ,H & V SERVICES,Community Centres,General Repairs
37UE,Gedling Borough Council,1004929,28/04/2017,40660124,903.96 ,BROWN ADVERTISING AND DESIGN,Car Parks,Stationery
37UE,Gedling Borough Council,1000212,24/04/2017,40660076,906.85 ,SHAW & SONS LTD,Elections,Stationery
37UE,Gedling Borough Council,1000189,16/08/2017,40661031,908.90 ,VIRGIN MEDIA LTD,Information Technology,Telephones
37UE,Gedling Borough Council,1000189,16/08/2017,40661031,"-3,097.19 ",VIRGIN MEDIA LTD,Information Technology,Computing
37UE,Gedling Borough Council,1000189,16/08/2017,40661031,"-1,001.00 ",VIRGIN MEDIA LTD,Information Technology,Computing
37UE,Gedling Borough Council,1000189,16/08/2017,40661031,910.24 ,VIRGIN MEDIA LTD,Information Technology,Telephones
37UE,Gedling Borough Council,1000224,28/07/2017,40660914,913.26 ,FREIGHT TRANSPORT ASSOCIATION,Fleet Management,Operational Equipment
37UE,Gedling Borough Council,1000205,21/04/2017,40660068,914.68 ,SEVERN TRENT WATER LTD,Arnold Leisure Centre,Water Charges (Metered)
37UE,Gedling Borough Council,1017390,02/06/2017,40660453,916.00 ,IDEAS4CAREERS UK LTD,Economic Development,Projects & Activities
37UE,Gedling Borough Council,1017390,14/07/2017,40660789,916.00 ,IDEAS4CAREERS UK LTD,Economic Development,Projects & Activities
37UE,Gedling Borough Council,1017390,04/08/2017,40660953,916.00 ,IDEAS4CAREERS UK LTD,Economic Development,Projects & Activities
37UE,Gedling Borough Council,1001214,12/05/2017,40660228,917.00 ,PERRYS EAST MIDLANDS LTD,Fleet Management,Hire of Transport
37UE,Gedling Borough Council,1001214,07/07/2017,40660736,917.00 ,PERRYS EAST MIDLANDS LTD,Fleet Management,Hire of Transport
37UE,Gedling Borough Council,1001852,24/05/2017,40660379,919.80 ,IDOX SOFTWARE LTD,Information Technology,Operational Equipment
37UE,Gedling Borough Council,1000576,04/08/2017,40660953,924.03 ,ELITE BLINDS (NOTTINGHAM) LIMITED,Property Services,Miscellaneous Capital Expenses
37UE,Gedling Borough Council,1005587,03/07/2017,40660702,924.78 ,TOTAL GAS AND POWER,Richard Herrod Centre,Gas
37UE,Gedling Borough Council,1000157,06/09/2017,40661163,925.00 ,CIPFA - Subscriptions,Estates & Valuation,Subscriptions
37UE,Gedling Borough Council,1017523,31/07/2017,40660948,927.11 ,WATER PLUS LTD,Public Offices,Water Charges (Metered)
37UE,Gedling Borough Council,1005943,21/06/2017,40660590,928.50 ,STAGE ELECTRICS,Arnold Theatre,General Materials
37UE,Gedling Borough Council,1002427,05/05/2017,40660159,929.96 ,COPYRIGHT LICENSING AGENCY LTD,Corporate Management,Subscriptions
37UE,Gedling Borough Council,1017381,12/04/2017,40660023,930.00 ,REDACTED DATA,Arnold Theatre,Instructors Fees
37UE,Gedling Borough Council,1001154,30/06/2017,40660658,931.50 ,STERILIZING SERVICES LTD,Carlton Forum Leisure Centre,General Materials
37UE,Gedling Borough Council,1000902,16/06/2017,40660537,932.78 ,ADT FIRE AND SECURITY PLC,Public Offices,General Repairs
37UE,Gedling Borough Council,1002955,07/07/2017,40660736,936.10 ,FRONTLINE RECRUITMENT NOTTINGHAM LTD,Waste Management,Agency Staff
37UE,Gedling Borough Council,1000189,10/05/2017,40660227,937.36 ,VIRGIN MEDIA LTD,Information Technology,Telephones
37UE,Gedling Borough Council,1005587,30/08/2017,40661125,942.17 ,TOTAL GAS AND POWER,Public Offices,Gas
37UE,Gedling Borough Council,1005456,04/08/2017,40660953,943.50 ,CHEMODEX LIMITED,Fleet Management,Fuel
37UE,Gedling Borough Council,1005415,14/06/2017,40660531,945.00 ,HUNTINGDON PROPERTIES LTD T/A THE CLARENCE HOTEL,Housing Needs,Other Services
37UE,Gedling Borough Council,1001852,30/06/2017,40660658,950.00 ,IDOX SOFTWARE LTD,Information Technology,Operational Equipment
37UE,Gedling Borough Council,1001852,11/08/2017,40660995,950.00 ,IDOX SOFTWARE LTD,Information Technology,Operational Equipment
37UE,Gedling Borough Council,1017379,31/05/2017,40660446,950.00 ,RAYNER DAVIES ARCHITECTS,Estates & Valuation,Consultancy Fees
37UE,Gedling Borough Council,1000072,19/07/2017,40660846,952.02 ,BT PLC,Financial Services,Phones
37UE,Gedling Borough Council,1001675,21/06/2017,40660593,952.75 ,CIVICA UK LTD,Housing Benefit Administration,Computing
37UE,Gedling Borough Council,1000025,26/07/2017,40660896,954.35 ,J P LENNARD LTD,Carlton Forum Leisure Centre,General Repairs
37UE,Gedling Borough Council,1000159,12/04/2017,40660023,956.26 ,CITY ELECTRICAL FACTORS LTD,Richard Herrod Centre,General Materials
37UE,Gedling Borough Council,1005756,12/04/2017,40660023,956.27 ,REDACTED DATA,Arnold Leisure Centre,Instructors Fees
37UE,Gedling Borough Council,1000734,13/09/2017,40661223,959.23 ,PARTIC MOTOR SPARES LTD.,Fleet Management,Vehicle Parts
37UE,Gedling Borough Council,1001160,07/04/2017,40659978,959.31 ,SHERRIFF AMENITY,Cemeteries,General Materials
37UE,Gedling Borough Council,1005469,14/06/2017,40660531,960.00 ,ASGS SECURITY SERVICES LIMITED,Redhill Leisure Centre,Agency Staff
37UE,Gedling Borough Council,1005086,15/09/2017,40661225,960.00 ,THE JOKER ENTERTAINMENT,Events & Play,Events
37UE,Gedling Borough Council,1005587,03/05/2017,40660153,961.40 ,TOTAL GAS AND POWER,Parks,Electricity
37UE,Gedling Borough Council,1003485,28/04/2017,40660124,962.25 ,SCHNEIDER ELECTRIC LTD,Financial Services,Miscellaneous Capital Expenses
37UE,Gedling Borough Council,1017124,05/07/2017,40660706,968.00 ,REDACTED DATA,Arnold Theatre,Instructors Fees
37UE,Gedling Borough Council,1000189,16/08/2017,40661031,968.09 ,VIRGIN MEDIA LTD,Information Technology,Telephones
37UE,Gedling Borough Council,1000189,13/09/2017,40661223,972.96 ,VIRGIN MEDIA LTD,Information Technology,Telephones
37UE,Gedling Borough Council,1005678,07/07/2017,40660736,974.13 ,SHIELD IT SOLUTIONS LIMITED,Redhill Leisure Centre,Projects & Activities
37UE,Gedling Borough Council,1000212,21/06/2017,40660590,974.40 ,SHAW & SONS LTD,Elections,Stationery
37UE,Gedling Borough Council,1017147,07/06/2017,40660482,975.00 ,"BT&T (BADGES, TIES & TROLLEY COINS) LIMITED",Leisure & Culture,Stock Account
37UE,Gedling Borough Council,1001675,27/09/2017,40661317,976.53 ,CIVICA UK LTD,Information Technology,Software Licence & Maintenance
37UE,Gedling Borough Council,1000336,18/08/2017,40661036,977.00 ,TIM RAYNOR,Carlton Forum Leisure Centre,General Repairs
37UE,Gedling Borough Council,1004201,23/06/2017,40660608,980.00 ,RAM CONSULTANCY LTD,Arnold Theatre,General Materials
37UE,Gedling Borough Council,1004201,10/05/2017,40660227,980.00 ,RAM CONSULTANCY LTD,Leisure & Culture,Miscellaneous Capital Expenses
37UE,Gedling Borough Council,1000224,24/05/2017,40660379,982.00 ,FREIGHT TRANSPORT ASSOCIATION,Fleet Management,Operational Equipment
37UE,Gedling Borough Council,1004800,26/05/2017,40660382,987.30 ,BUNZL CLEANING & HYGIENE SUPPLIES,Public Offices,Cleaning & Domestic Equipment
37UE,Gedling Borough Council,1000107,26/05/2017,40660382,988.00 ,NOTTINGHAM CITY COUNCIL,Development Management,Agency Staff
37UE,Gedling Borough Council,1000107,30/06/2017,40660658,988.00 ,NOTTINGHAM CITY COUNCIL,Development Management,Agency Staff
37UE,Gedling Borough Council,1000107,31/07/2017,40660948,988.00 ,NOTTINGHAM CITY COUNCIL,Development Management,Agency Staff
37UE,Gedling Borough Council,1000107,25/08/2017,40661086,988.00 ,NOTTINGHAM CITY COUNCIL,Development Management,Agency Staff
37UE,Gedling Borough Council,1000107,29/09/2017,40661323,988.00 ,NOTTINGHAM CITY COUNCIL,Development Management,Agency Staff
37UE,Gedling Borough Council,1000205,21/04/2017,40660068,990.91 ,SEVERN TRENT WATER LTD,Calverton Leisure Centre,Drainage Charges
37UE,Gedling Borough Council,1003158,23/08/2017,40661078,995.00 ,DJB CONTRACTS,Parks,Maintenance
37UE,Gedling Borough Council,1002038,14/07/2017,40660789,995.00 ,KEEP BRITAIN TIDY,Parks,General Materials
37UE,Gedling Borough Council,1005587,26/06/2017,40660644,997.66 ,TOTAL GAS AND POWER,Public Offices,Electricity
37UE,Gedling Borough Council,1000588,20/09/2017,40661255,999.60 ,A. MEHEW BUILDING SERVICES LTD,Public Offices,Maintenance
37UE,Gedling Borough Council,1017491,07/06/2017,40660482,"1,000.00 ",ARTIFICIAL LAWN FITTERS UK LIMITED,Economic Development,Grants
37UE,Gedling Borough Council,1017525,21/07/2017,40660852,"1,000.00 ",BJS DENTAL,Economic Development,Grants
37UE,Gedling Borough Council,1000081,16/06/2017,40660537,"1,000.00 ",BROXTOWE BOROUGH COUNCIL,Waste Management,Bin Purchases
37UE,Gedling Borough Council,1001766,13/09/2017,40661223,"1,000.00 ",DUKERIES ENTERTAINMENTS LIMITED,Richard Herrod Centre,Publicity & Promotion
37UE,Gedling Borough Council,1002743,11/08/2017,40660995,"1,000.00 ",FRAMA (UK) LTD,Postages,Postages
37UE,Gedling Borough Council,1002743,04/09/2017,40661160,"1,000.00 ",FRAMA (UK) LTD,Postages,Postages
37UE,Gedling Borough Council,1002743,15/09/2017,40661225,"1,000.00 ",FRAMA (UK) LTD,Postages,Postages
37UE,Gedling Borough Council,1000736,09/08/2017,40660984,"1,000.00 ",GEDLING PLAY FORUM,Events & Play,Projects & Activities
37UE,Gedling Borough Council,1017466,28/04/2017,40660124,"1,000.00 ",HAZEL HURST SCHOOL (MAPPERLEY) LTD,Economic Development,Grants
37UE,Gedling Borough Council,1017488,12/04/2017,40660023,"1,000.00 ",M1 MAINTENANCE SERVICES LTD,Economic Development,Grants
37UE,Gedling Borough Council,1017519,07/07/2017,40660736,"1,000.00 ",MERCURY FIRE AND SECURITY LIMITED,Economic Development,Grants
37UE,Gedling Borough Council,1017439,12/04/2017,40660023,"1,000.00 ",NG5 ELECTRICAL LIMITED,Economic Development,Grants
37UE,Gedling Borough Council,1002955,20/09/2017,40661255,"1,000.61 ",FRONTLINE RECRUITMENT NOTTINGHAM LTD,Street Care,Agency Staff
37UE,Gedling Borough Council,1002955,20/09/2017,40661255,"1,001.25 ",FRONTLINE RECRUITMENT NOTTINGHAM LTD,Parks,General Repairs
37UE,Gedling Borough Council,1004705,24/05/2017,40660379,"1,005.69 ",BROOKFORGE LTD,Arnold Leisure Centre,Advertising
37UE,Gedling Borough Council,1003677,28/04/2017,40660124,"1,010.00 ",STEVE KERR PAINTING & DECORATING,Redhill Leisure Centre,Publicity & Promotion
37UE,Gedling Borough Council,1001766,12/04/2017,40660023,"1,012.00 ",DUKERIES ENTERTAINMENTS LIMITED,Richard Herrod Centre,Publicity & Promotion
37UE,Gedling Borough Council,1001154,23/06/2017,40660608,"1,013.89 ",STERILIZING SERVICES LTD,Carlton Forum Leisure Centre,Joint Use maintenance
37UE,Gedling Borough Council,1005415,21/06/2017,40660593,"1,015.00 ",HUNTINGDON PROPERTIES LTD T/A THE CLARENCE HOTEL,Housing Needs,Other Services
37UE,Gedling Borough Council,1001214,12/04/2017,40660023,"1,015.25 ",PERRYS EAST MIDLANDS LTD,Fleet Management,Hire of Transport
37UE,Gedling Borough Council,1001214,09/06/2017,40660485,"1,015.25 ",PERRYS EAST MIDLANDS LTD,Fleet Management,Hire of Transport
37UE,Gedling Borough Council,1004104,19/05/2017,40660312,"1,016.00 ",PLATTS HARRIS LTD,Parks,Operational Equipment
37UE,Gedling Borough Council,1005756,10/05/2017,40660227,"1,016.73 ",REDACTED DATA,Arnold Leisure Centre,Instructors Fees
37UE,Gedling Borough Council,1006012,09/08/2017,40660984,"1,022.00 ",ORION SECURE PRINT SYSTEMS,Licencing & Hackney Carriages,Licences
37UE,Gedling Borough Council,1000695,08/09/2017,40661167,"1,024.40 ",ZOGGS INTERNATIONAL LTD.,Leisure & Culture,Stock Account
37UE,Gedling Borough Council,1000385,21/04/2017,40660068,"1,024.67 ",NEOPOST LIMITED,Revenues-Local Taxation,Operational Equipment
37UE,Gedling Borough Council,1003158,12/04/2017,40660023,"1,025.00 ",DJB CONTRACTS,Car Parks,Maintenance
37UE,Gedling Borough Council,1000982,05/06/2017,40660476,"1,027.50 ",ARDEN WINCH & CO LTD,Waste Management,Protective Clothing
37UE,Gedling Borough Council,1000205,07/06/2017,40660482,"1,029.71 ",SEVERN TRENT WATER LTD,Parks,Water Charges (Metered)
37UE,Gedling Borough Council,1000218,04/08/2017,40660953,"1,033.80 ",OMNICO GROUP UK LIMITED,Carlton Forum Leisure Centre,Projects & Activities
37UE,Gedling Borough Council,1001271,18/08/2017,40661036,"1,034.03 ",NCC SUPPLIES,Carlton Forum Leisure Centre,Cleaning & Domestic Equipment
37UE,Gedling Borough Council,1017065,17/05/2017,40660270,"1,035.49 ",MARSTONS PLC,Leisure & Culture,Stock Account
37UE,Gedling Borough Council,1000319,30/06/2017,40660658,"1,038.87 ",H & V SERVICES,Community Centres,General Repairs
37UE,Gedling Borough Council,1002955,30/06/2017,40660658,"1,046.78 ",FRONTLINE RECRUITMENT NOTTINGHAM LTD,Waste Management,Agency Staff
37UE,Gedling Borough Council,1005756,11/08/2017,40660995,"1,047.48 ",REDACTED DATA,Arnold Leisure Centre,Instructors Fees
37UE,Gedling Borough Council,1017441,05/05/2017,40660159,"1,050.00 ",4 D TREE SURVEY LTD,Parks,Maintenance
37UE,Gedling Borough Council,1000001,19/04/2017,40660029,"1,050.00 ",BAIRSTOWE EVES,Housing Needs,Projects & Activities
37UE,Gedling Borough Council,1002501,26/07/2017,40660896,"1,050.00 ",FLYING HIGH EXPRESSIVE ARTS COMPANY,Community Grants,Grants
37UE,Gedling Borough Council,1002955,11/08/2017,40660995,"1,052.28 ",FRONTLINE RECRUITMENT NOTTINGHAM LTD,Waste Management,Agency Staff
37UE,Gedling Borough Council,1005756,09/06/2017,40660485,"1,053.57 ",REDACTED DATA,Arnold Leisure Centre,Instructors Fees
37UE,Gedling Borough Council,1002618,28/06/2017,40660654,"1,053.76 ",UK CONTAINER MAINTENANCE LTD,Waste Services,Stock Account
37UE,Gedling Borough Council,1005756,08/09/2017,40661167,"1,054.57 ",REDACTED DATA,Arnold Leisure Centre,Instructors Fees
37UE,Gedling Borough Council,1000218,26/07/2017,40660896,"1,059.81 ",OMNICO GROUP UK LIMITED,Carlton Forum Leisure Centre,Projects & Activities
37UE,Gedling Borough Council,1000948,16/08/2017,40661031,"1,060.00 ",ARNOLD ELECTRICAL,Arnold Leisure Centre,General Repairs
37UE,Gedling Borough Council,1003953,21/04/2017,40660068,"1,060.00 ",GEORGE MUDFORD AND SONS LTD,Elections,Operational Equipment
37UE,Gedling Borough Council,1004461,26/04/2017,40660115,"1,061.38 ",S.J.S. PLUMBING HEATING & PROPERTY SERVICES,Parks,Maintenance
37UE,Gedling Borough Council,1000001,16/06/2017,40660538,"1,062.00 ",A.E.LYMN,Cemeteries,Fees&Charges - General
37UE,Gedling Borough Council,1017065,23/08/2017,40661078,"1,062.81 ",MARSTONS PLC,Leisure & Culture,Stock Account
37UE,Gedling Borough Council,1000224,03/05/2017,40660153,"1,063.26 ",FREIGHT TRANSPORT ASSOCIATION,Fleet Management,Operational Equipment
37UE,Gedling Borough Council,1017512,09/08/2017,40660984,"1,063.52 ",CHAMPION CONTRACT SERVICES LTD,Development Management,Consultancy Fees
37UE,Gedling Borough Council,1000213,03/05/2017,40660153,"1,065.00 ",PRECIA-MOLEN UK LTD,Public Offices,Maintenance
37UE,Gedling Borough Council,1000129,05/06/2017,40660476,"1,065.33 ",CANNON HYGIENE LTD.,Public Offices,Administrative Equipment
37UE,Gedling Borough Council,1017196,30/06/2017,40660658,"1,066.91 ",JACOBS,Revenues-Local Taxation,Legal & Professional Services
37UE,Gedling Borough Council,1005587,31/07/2017,40660948,"1,068.54 ",TOTAL GAS AND POWER,Arnold Leisure Centre,Gas
37UE,Gedling Borough Council,1000001,26/05/2017,40660386,"1,070.00 ",JOSEPH PENCE ENTERTAINMENT,Localities,Projects & Activities
37UE,Gedling Borough Council,1017512,15/09/2017,40661225,"1,071.34 ",CHAMPION CONTRACT SERVICES LTD,Development Management,Consultancy Fees
37UE,Gedling Borough Council,1000067,19/05/2017,40660312,"1,073.00 ",BOC LTD.,Fleet Management,Operational Equipment
37UE,Gedling Borough Council,1000900,03/05/2017,40660153,"1,073.52 ",VODAFONE LIMITED,Information Technology,Computing
37UE,Gedling Borough Council,1004988,11/09/2017,40661212,"1,075.00 ",RIGBY TAYLOR LTD,Parks,General Materials
37UE,Gedling Borough Council,1000627,07/04/2017,40659978,"1,076.00 ",PAGE WHELAN DESIGN & PRINT LTD,Localities,Projects & Activities
37UE,Gedling Borough Council,1017065,14/07/2017,40660789,"1,076.34 ",MARSTONS PLC,Leisure & Culture,Stock Account
37UE,Gedling Borough Council,1000588,28/06/2017,40660654,"1,083.00 ",A. MEHEW BUILDING SERVICES LTD,Public Offices,General Repairs
37UE,Gedling Borough Council,1005415,31/05/2017,40660446,"1,085.00 ",HUNTINGDON PROPERTIES LTD T/A THE CLARENCE HOTEL,Housing Needs,Other Services
37UE,Gedling Borough Council,1000450,02/08/2017,40660950,"1,087.00 ",MIDLAND SIGNS  LEICESTER  LTD.,Street Care,Maintenance
37UE,Gedling Borough Council,1000205,07/07/2017,40660736,"1,088.59 ",SEVERN TRENT WATER LTD,Parks,Water Charges (Metered)
37UE,Gedling Borough Council,1000522,26/05/2017,40660382,"1,090.00 ",LOCAL GOVERNMENT ASSOCIATION,Corporate Management,Conferences - Employees
37UE,Gedling Borough Council,1000522,26/05/2017,40660382,"1,090.00 ",LOCAL GOVERNMENT ASSOCIATION,Democratic Mgt & Representation,Conferences - Members
37UE,Gedling Borough Council,1002955,25/08/2017,40661086,"1,096.88 ",FRONTLINE RECRUITMENT NOTTINGHAM LTD,Parks,General Repairs
37UE,Gedling Borough Council,1002927,18/08/2017,40661036,"1,097.80 ",OPAL ENVELOPES LTD,Revenues-Local Taxation,Stationery
37UE,Gedling Borough Council,1003124,12/05/2017,40660228,"1,105.00 ",PFS FIRE & SECURITY LTD,Arnold Leisure Centre,Operational Equipment
37UE,Gedling Borough Council,1017478,05/07/2017,40660706,"1,105.00 ",REDACTED DATA,Arnold Theatre,Instructors Fees
37UE,Gedling Borough Council,1003158,03/05/2017,40660153,"1,110.00 ",DJB CONTRACTS,Public Offices,General Repairs
37UE,Gedling Borough Council,1003158,14/07/2017,40660789,"1,110.00 ",DJB CONTRACTS,Car Parks,Maintenance
37UE,Gedling Borough Council,1000129,23/08/2017,40661078,"1,115.64 ",CANNON HYGIENE LTD.,Public Offices,Administrative Equipment
37UE,Gedling Borough Council,1005587,03/07/2017,40660702,"1,115.95 ",TOTAL GAS AND POWER,Redhill Leisure Centre,Electricity
37UE,Gedling Borough Council,1017300,16/06/2017,40660537,"1,120.00 ",ASCOT HOTEL,Housing Needs,Other Services
37UE,Gedling Borough Council,1017300,28/07/2017,40660914,"1,120.00 ",ASCOT HOTEL,Housing Needs,Other Services
37UE,Gedling Borough Council,1005839,07/06/2017,40660482,"1,120.00 ",BURTONWOOD MIDLANDS LTD T/A SIGNS EXPRESS(NOTTINGHAM) LTD.,Carlton Forum Leisure Centre,Operational Equipment
37UE,Gedling Borough Council,1000695,26/05/2017,40660382,"1,124.80 ",ZOGGS INTERNATIONAL LTD.,Leisure & Culture,Stock Account
37UE,Gedling Borough Council,1002955,07/07/2017,40660736,"1,127.02 ",FRONTLINE RECRUITMENT NOTTINGHAM LTD,Waste Management,Agency Staff
37UE,Gedling Borough Council,1005653,02/08/2017,40660950,"1,138.87 ",WASTEPARTS UK LTD,Fleet Management,Vehicle Parts
37UE,Gedling Borough Council,1000154,26/07/2017,40660896,"1,142.23 ",PHONOGRAPHIC PERFORMANCE LTD,Calverton Leisure Centre,Licences
37UE,Gedling Borough Council,1017339,14/06/2017,40660531,"1,143.75 ",HEATON PLANNING,Estates & Valuation,Consultancy Fees
37UE,Gedling Borough Council,1002955,14/06/2017,40660531,"1,144.50 ",FRONTLINE RECRUITMENT NOTTINGHAM LTD,Waste Management,Agency Staff
37UE,Gedling Borough Council,1000143,28/06/2017,40660654,"1,153.28 ",CCS MEDIA LTD.,Information Technology,Hardware Maintenance
37UE,Gedling Borough Council,1004777,07/08/2017,40660977,"1,159.54 ",CALE ACCESS UK LTD,Car Parks,Maintenance
37UE,Gedling Borough Council,1000580,28/04/2017,40660124,"1,159.61 ",EE LIMITED,Financial Services,Phones
37UE,Gedling Borough Council,1004069,21/06/2017,40660590,"1,160.00 ",SHIFTING SANDS,Events & Play,Projects & Activities
37UE,Gedling Borough Council,1002955,15/09/2017,40661225,"1,164.40 ",FRONTLINE RECRUITMENT NOTTINGHAM LTD,Waste Management,Agency Staff
37UE,Gedling Borough Council,1000440,14/08/2017,40661023,"1,175.66 ",NOTTINGHAMSHIRE COUNTY COUNCIL,Development Management,Advertising
37UE,Gedling Borough Council,1002955,30/06/2017,40660658,"1,178.19 ",FRONTLINE RECRUITMENT NOTTINGHAM LTD,Waste Management,Agency Staff
37UE,Gedling Borough Council,1017293,26/05/2017,40660382,"1,184.00 ",ASPIN & COMPANY,Economic Development,Consultancy Fees
37UE,Gedling Borough Council,1005408,12/05/2017,40660228,"1,185.00 ",REDESIGN CREATIONS LTD,Redhill Leisure Centre,Projects & Activities
37UE,Gedling Borough Council,1001766,11/08/2017,40660995,"1,187.00 ",DUKERIES ENTERTAINMENTS LIMITED,Richard Herrod Centre,Publicity & Promotion
37UE,Gedling Borough Council,1000167,07/04/2017,40659978,"1,192.00 ",PROSPECT PLAYERS,Leisure & Culture,Theatre Ticket Payments
37UE,Gedling Borough Council,1002955,23/06/2017,40660608,"1,196.04 ",FRONTLINE RECRUITMENT NOTTINGHAM LTD,Waste Management,Agency Staff
37UE,Gedling Borough Council,1001018,27/09/2017,40661317,"1,200.00 ",FOREST FARM TREE SERVICES,Parks,Operational Equipment
37UE,Gedling Borough Council,1004273,30/06/2017,40660658,"1,200.00 ",NATURE SIGN DESIGN,Parks,General Materials
37UE,Gedling Borough Council,1017231,13/09/2017,40661223,"1,200.00 ",REDACTIVE PUBLISHING LTD,Organisational Development,Dept Recruitment Advertising
37UE,Gedling Borough Council,1017095,28/06/2017,40660654,"1,200.00 ",STONE COMPUTERS LTD,Information Technology,Acquisitions Via Replacement Fund
37UE,Gedling Borough Council,1000580,26/06/2017,40660644,"1,201.88 ",EE LIMITED,Financial Services,Phones
37UE,Gedling Borough Council,1001154,19/05/2017,40660312,"1,204.20 ",STERILIZING SERVICES LTD,Carlton Forum Leisure Centre,General Repairs
37UE,Gedling Borough Council,1005587,31/05/2017,40660446,"1,207.57 ",TOTAL GAS AND POWER,Richard Herrod Centre,Gas
37UE,Gedling Borough Council,1004104,14/06/2017,40660531,"1,223.50 ",PLATTS HARRIS LTD,Fleet Management,Vehicle Parts
37UE,Gedling Borough Council,1000580,26/05/2017,40660382,"1,225.43 ",EE LIMITED,Financial Services,Phones
37UE,Gedling Borough Council,1017065,01/09/2017,40661133,"1,230.15 ",MARSTONS PLC,Leisure & Culture,Stock Account
37UE,Gedling Borough Council,1003142,26/07/2017,40660896,"1,233.50 ",GOODBROOKS ELECTRICAL SERVICES LTD,Parks,General Repairs
37UE,Gedling Borough Council,1005233,12/07/2017,40660780,"1,238.52 ","OPEN BOOK INTERNATIONAL LTD, T/A PRACTICAL AV",Leisure & Culture,Miscellaneous Capital Expenses
37UE,Gedling Borough Council,1004782,23/06/2017,40660608,"1,240.00 ",COMPLETE COOLING SERVICES LIMITED,Arnold Leisure Centre,General Repairs
37UE,Gedling Borough Council,1005086,29/09/2017,40661323,"1,240.00 ",THE JOKER ENTERTAINMENT,Events & Play,Events
37UE,Gedling Borough Council,1000580,25/08/2017,40661086,"1,240.08 ",EE LIMITED,Financial Services,Phones
37UE,Gedling Borough Council,1017065,28/07/2017,40660914,"1,242.49 ",MARSTONS PLC,Leisure & Culture,Stock Account
37UE,Gedling Borough Council,1005587,03/05/2017,40660153,"1,244.37 ",TOTAL GAS AND POWER,Public Offices,Electricity
37UE,Gedling Borough Council,1005469,05/05/2017,40660159,"1,250.00 ",ASGS SECURITY SERVICES LIMITED,Public Offices,Administrative Equipment
37UE,Gedling Borough Council,1002955,12/05/2017,40660228,"1,256.91 ",FRONTLINE RECRUITMENT NOTTINGHAM LTD,Street Care,Agency Staff
37UE,Gedling Borough Council,1003916,22/09/2017,40661269,"1,258.83 ",PRINT IMAGE NETWORK LTD,Elections,Postages
37UE,Gedling Borough Council,1000580,26/07/2017,40660896,"1,264.52 ",EE LIMITED,Financial Services,Phones
37UE,Gedling Borough Council,1004359,07/07/2017,40660736,"1,265.00 ",M & G SERVICES LTD,Carlton Forum Leisure Centre,Joint Use maintenance
37UE,Gedling Borough Council,1017512,27/09/2017,40661317,"1,266.84 ",CHAMPION CONTRACT SERVICES LTD,Development Management,Consultancy Fees
37UE,Gedling Borough Council,1001766,19/05/2017,40660312,"1,277.00 ",DUKERIES ENTERTAINMENTS LIMITED,Richard Herrod Centre,Publicity & Promotion
37UE,Gedling Borough Council,1004451,04/08/2017,40660953,"1,280.00 ",DEM ELECTRICAL LTD,Carlton Forum Leisure Centre,General Repairs
37UE,Gedling Borough Council,1000580,27/09/2017,40661317,"1,281.89 ",EE LIMITED,Financial Services,Phones
37UE,Gedling Borough Council,1000731,14/06/2017,40660531,"1,293.00 ",RICARDO - AEA LTD,Environmental Protection,Course Fees
37UE,Gedling Borough Council,1004201,18/08/2017,40661036,"1,293.60 ",RAM CONSULTANCY LTD,Leisure & Culture,Miscellaneous Capital Expenses
37UE,Gedling Borough Council,1000112,12/06/2017,40660530,"1,297.50 ",NOTTINGHAM ORGAN SOCIETY,Leisure & Culture,Theatre Ticket Payments
37UE,Gedling Borough Council,1000191,19/07/2017,40660846,"1,298.09 ",ROYAL MAIL,Elections,Postages
37UE,Gedling Borough Council,1017065,23/06/2017,40660608,"1,310.21 ",MARSTONS PLC,Leisure & Culture,Stock Account
37UE,Gedling Borough Council,1017512,22/09/2017,40661269,"1,313.76 ",CHAMPION CONTRACT SERVICES LTD,Development Management,Consultancy Fees
37UE,Gedling Borough Council,1002955,09/06/2017,40660485,"1,314.94 ",FRONTLINE RECRUITMENT NOTTINGHAM LTD,Waste Management,Agency Staff
37UE,Gedling Borough Council,1003449,10/05/2017,40660227,"1,327.44 ",NG MAGAZINES,Redhill Leisure Centre,D.N.A Expenditure
37UE,Gedling Borough Council,1005642,23/08/2017,40661078,"1,327.80 ",CERTAS ENERGY UK LTD T/A PACE FUELCARE,Sustainability & Asset Management,Stock received not invoiced
37UE,Gedling Borough Council,1017392,31/05/2017,40660446,"1,331.88 ",CHRISTINE JAMES (PLANNING) LTD,Development Management,Consultancy Fees
37UE,Gedling Borough Council,1017302,31/05/2017,40660446,"1,333.42 ",WALT DISNEY COMPANY UK,Arnold Theatre,Publicity & Promotion
37UE,Gedling Borough Council,1005581,07/06/2017,40660482,"1,336.06 ",BOTTOMLINE TECHNOLOGIES LIMITED,Information Technology,Software Licence & Maintenance
37UE,Gedling Borough Council,1005587,23/06/2017,40660608,"1,339.66 ",TOTAL GAS AND POWER,Redhill Leisure Centre,Electricity
37UE,Gedling Borough Council,1017502,12/07/2017,40660780,"1,350.00 ",COOLAIR BUS & RAIL LTD T/A COOLAIR LOGAN,Fleet Management,Vehicle Parts
37UE,Gedling Borough Council,1002086,07/06/2017,40660482,"1,351.71 ",CREATIVE FLAVOURS CATERING LTD,Democratic Mgt & Representation,Mayor's  Civic & Hospitality
37UE,Gedling Borough Council,1002707,30/06/2017,40660658,"1,352.00 ",CHARTERED MANAGEMENT INSTITUTE,Organisational Development,Fees & Charges
37UE,Gedling Borough Council,1005249,21/07/2017,40660852,"1,360.00 ",INSTITUTE OF SWIMMING,Calverton Leisure Centre,Course Fees
37UE,Gedling Borough Council,1004461,19/05/2017,40660312,"1,361.16 ",S.J.S. PLUMBING HEATING & PROPERTY SERVICES,Parks,External Contractor
37UE,Gedling Borough Council,1000157,14/07/2017,40660789,"1,363.63 ",CIPFA - Subscriptions,Financial Services,Consultancy Fees
37UE,Gedling Borough Council,1002955,21/04/2017,40660068,"1,364.89 ",FRONTLINE RECRUITMENT NOTTINGHAM LTD,Street Care,Agency Staff
37UE,Gedling Borough Council,1017523,19/07/2017,40660846,"1,365.92 ",WATER PLUS LTD,Parks,Water Charges (Metered)
37UE,Gedling Borough Council,1017065,21/07/2017,40660852,"1,365.93 ",MARSTONS PLC,Leisure & Culture,Stock Account
37UE,Gedling Borough Council,1005957,05/05/2017,40660159,"1,384.41 ",PROFILE SECURITY SERVICES LTD,Comm Protection & Dog Control,External Contractor
37UE,Gedling Borough Council,1000039,12/06/2017,40660530,"1,385.41 ",ARCO LTD,Carlton Forum Leisure Centre,Operational Equipment
37UE,Gedling Borough Council,1003142,19/05/2017,40660312,"1,387.00 ",GOODBROOKS ELECTRICAL SERVICES LTD,Public Offices,General Repairs
37UE,Gedling Borough Council,1000151,05/06/2017,40660476,"1,389.16 ",THE PERFORMING RIGHT SOCIETY LTD,Calverton Leisure Centre,Licences
37UE,Gedling Borough Council,1017299,27/09/2017,40661317,"1,391.00 ",GELDARDS LLP,Legal Services,Legal & Professional Services
37UE,Gedling Borough Council,1002142,14/07/2017,40660789,"1,392.62 ",THE CARLTON ACADEMY,Carlton Forum Leisure Centre,Water Charges (Metered)
37UE,Gedling Borough Council,1000822,23/08/2017,40661078,"1,395.00 ",CENTRAL SECURITY SYSTEMS LIMITED,Comm Protection & Dog Control,Operational Equipment
37UE,Gedling Borough Council,1000610,26/04/2017,40660115,"1,398.00 ",TECHNOGYM UK LTD,Redhill Leisure Centre,Base Budget Maintenance
37UE,Gedling Borough Council,1005902,25/08/2017,40661086,"1,399.00 ",OBAM LIFT SERVICES LTD,Public Protection,Improvement Grants
37UE,Gedling Borough Council,1000205,28/04/2017,40660124,"1,399.87 ",SEVERN TRENT WATER LTD,Richard Herrod Centre,Water Charges (Metered)
37UE,Gedling Borough Council,1005749,08/05/2017,40660162,"1,400.00 ",ENVITECH EUROPE LTD,Environmental Protection,Operational Equipment
37UE,Gedling Borough Council,1000982,16/08/2017,40661031,"1,401.06 ",ARDEN WINCH & CO LTD,Waste Management,Protective Clothing
37UE,Gedling Borough Council,1005642,08/05/2017,40660162,"1,403.10 ",CERTAS ENERGY UK LTD T/A PACE FUELCARE,Sustainability & Asset Management,Stock received not invoiced
37UE,Gedling Borough Council,1002955,12/04/2017,40660023,"1,404.00 ",FRONTLINE RECRUITMENT NOTTINGHAM LTD,Street Care,Agency Staff
37UE,Gedling Borough Council,1005522,24/07/2017,40660889,"1,405.16 ",DERWENT HOUSING ASSOCIATION,Housing Needs,Premises Rents
37UE,Gedling Borough Council,1005522,11/08/2017,40660995,"1,405.16 ",DERWENT HOUSING ASSOCIATION,Housing Needs,Premises Rents
37UE,Gedling Borough Council,1005522,15/09/2017,40661225,"1,405.16 ",DERWENT HOUSING ASSOCIATION,Housing Needs,Premises Rents
37UE,Gedling Borough Council,1000158,21/08/2017,40661067,"1,410.00 ",POST OFFICE LTD,Fleet Management,Vehicle Licences
37UE,Gedling Borough Council,1000441,12/04/2017,40660023,"1,410.75 ",SLACK & CO FLOORCOVERINGS LTD,Public Offices,General Repairs
37UE,Gedling Borough Council,1004286,23/06/2017,40660608,"1,415.00 ",PITCH AND TRACK LTD,Carlton Forum Leisure Centre,External Grounds Maintenance
37UE,Gedling Borough Council,1005408,07/08/2017,40660977,"1,415.00 ",REDESIGN CREATIONS LTD,Carlton Forum Leisure Centre,Projects & Activities
37UE,Gedling Borough Council,1017258,10/05/2017,40660227,"1,416.00 ",SODEXO MOTIVATION SOLUTIONS U.K LTD T/A P & M M LTD,Organisational Development,Projects & Activities
37UE,Gedling Borough Council,1000320,14/06/2017,40660531,"1,417.00 ",HILL BROS  NOTTM  LTD.,Public Protection,Improvement Grants
37UE,Gedling Borough Council,1000902,12/07/2017,40660780,"1,430.00 ",ADT FIRE AND SECURITY PLC,Public Offices,General Repairs
37UE,Gedling Borough Council,1000751,07/07/2017,40660736,"1,435.94 ",TERBERG MATEC UK LTD,Fleet Management,Vehicle Parts
37UE,Gedling Borough Council,1005158,28/07/2017,40660914,"1,437.68 ",VWS VEHICLE WEIGHING SOLUTIONS,Fleet Management,Vehicle Parts
37UE,Gedling Borough Council,1005587,29/09/2017,40661323,"1,438.22 ",TOTAL GAS AND POWER,Redhill Leisure Centre,Electricity
37UE,Gedling Borough Council,1000900,30/08/2017,40661125,"1,444.55 ",VODAFONE LIMITED,Information Technology,Computing
37UE,Gedling Borough Council,1003677,11/08/2017,40660995,"1,450.00 ",STEVE KERR PAINTING & DECORATING,Arnold Leisure Centre,Operational Equipment
37UE,Gedling Borough Council,1001018,24/05/2017,40660379,"1,457.00 ",FOREST FARM TREE SERVICES,Parks,Operational Equipment
37UE,Gedling Borough Council,1017065,26/05/2017,40660382,"1,463.15 ",MARSTONS PLC,Leisure & Culture,Stock Account
37UE,Gedling Borough Council,1004800,12/07/2017,40660780,"1,465.89 ",BUNZL CLEANING & HYGIENE SUPPLIES,Public Offices,Cleaning & Domestic Equipment
37UE,Gedling Borough Council,1001024,05/06/2017,40660476,"1,468.00 ",CAPITA BUSINESS SERVICES LTD,Housing Needs,Software Licence & Maintenance
37UE,Gedling Borough Council,1001362,12/05/2017,40660228,"1,469.54 ",BABBINGTON HALL KENNELS & CATTERY,Comm Protection & Dog Control,External Contractor - Stray Dogs
37UE,Gedling Borough Council,1001362,28/07/2017,40660914,"1,469.54 ",BABBINGTON HALL KENNELS & CATTERY,Comm Protection & Dog Control,External Contractor - Stray Dogs
37UE,Gedling Borough Council,1001362,08/09/2017,40661167,"1,469.54 ",BABBINGTON HALL KENNELS & CATTERY,Comm Protection & Dog Control,External Contractor - Stray Dogs
37UE,Gedling Borough Council,1005185,02/06/2017,40660453,"1,470.00 ",GB AIR CONDITIONING SERVICES,Carlton Forum Leisure Centre,Operational Equipment
37UE,Gedling Borough Council,1005415,09/06/2017,40660485,"1,470.00 ",HUNTINGDON PROPERTIES LTD T/A THE CLARENCE HOTEL,Housing Needs,Other Services
37UE,Gedling Borough Council,1000191,09/06/2017,40660485,"1,473.37 ",ROYAL MAIL,Elections,Postages
37UE,Gedling Borough Council,1005839,26/05/2017,40660382,"1,475.50 ",BURTONWOOD MIDLANDS LTD T/A SIGNS EXPRESS(NOTTINGHAM) LTD.,Carlton Forum Leisure Centre,Operational Equipment
37UE,Gedling Borough Council,1017065,29/09/2017,40661323,"1,479.96 ",MARSTONS PLC,Leisure & Culture,Stock Account
37UE,Gedling Borough Council,1000205,22/05/2017,40660365,"1,487.90 ",SEVERN TRENT WATER LTD,Public Offices,Water Charges (Metered)
37UE,Gedling Borough Council,1000948,19/07/2017,40660846,"1,496.80 ",ARNOLD ELECTRICAL,Arnold Leisure Centre,General Repairs
37UE,Gedling Borough Council,1001362,09/06/2017,40660485,"1,499.54 ",BABBINGTON HALL KENNELS & CATTERY,Comm Protection & Dog Control,External Contractor - Stray Dogs
37UE,Gedling Borough Council,1003175,27/09/2017,40661317,"1,500.00 ",FALCON PEST SERVICES & SCREENS,Environmental Protection,Agency Staff
37UE,Gedling Borough Council,1001540,12/06/2017,40660530,"1,500.00 ",THE NOTTINGHAMSHIRE OFFICE OF THE POLICE AND CRIME COMMISSIONER,Comm Protection & Dog Control,Crime Prevention
37UE,Gedling Borough Council,1000001,09/08/2017,40660984,"1,500.00 ",VILLAGE VISION,Community Grants,Grants
37UE,Gedling Borough Council,1017490,26/05/2017,40660382,"1,501.00 ",FLAME SHIELD FIREPROOFING SERVICES,Richard Herrod Centre,General Repairs
37UE,Gedling Borough Council,1017065,11/08/2017,40660995,"1,505.02 ",MARSTONS PLC,Leisure & Culture,Stock Account
37UE,Gedling Borough Council,1000782,05/06/2017,40660476,"1,507.86 ",DENNIS EAGLE LTD,Fleet Management,Vehicle Parts
37UE,Gedling Borough Council,1000218,02/08/2017,40660950,"1,509.56 ",OMNICO GROUP UK LIMITED,Carlton Forum Leisure Centre,Projects & Activities
37UE,Gedling Borough Council,1005188,31/05/2017,40660446,"1,511.37 ",PRISM MEDICAL UK WESTHOLME DIVISION,Public Protection,Improvement Grants
37UE,Gedling Borough Council,1003485,26/05/2017,40660382,"1,512.50 ",SCHNEIDER ELECTRIC LTD,Public Offices,Administrative Equipment
37UE,Gedling Borough Council,1005280,12/06/2017,40660530,"1,514.52 ",IVANTI UK LIMITED,Information Technology,Computing
37UE,Gedling Borough Council,1005902,06/09/2017,40661163,"1,515.00 ",OBAM LIFT SERVICES LTD,Public Protection,Improvement Grants
37UE,Gedling Borough Council,1000822,30/08/2017,40661125,"1,520.00 ",CENTRAL SECURITY SYSTEMS LIMITED,Comm Protection & Dog Control,Operational Equipment
37UE,Gedling Borough Council,1000902,31/05/2017,40660446,"1,520.16 ",ADT FIRE AND SECURITY PLC,Public Offices,Administrative Equipment
37UE,Gedling Borough Council,1005587,22/05/2017,40660365,"1,520.24 ",TOTAL GAS AND POWER,Corporate Finance,Gas
37UE,Gedling Borough Council,1000272,12/04/2017,40660023,"1,521.00 ",WOODBOROUGH PARISH COUNCIL,Community Grants,Grants
37UE,Gedling Borough Council,1003158,02/06/2017,40660453,"1,523.00 ",DJB CONTRACTS,Street Care,Maintenance
37UE,Gedling Borough Council,1000191,05/07/2017,40660706,"1,526.89 ",ROYAL MAIL,Elections,Postages
37UE,Gedling Borough Council,1005587,03/07/2017,40660702,"1,529.17 ",TOTAL GAS AND POWER,Arnold Leisure Centre,Gas
37UE,Gedling Borough Council,1002584,07/07/2017,40660736,"1,530.18 ",HP INC UK LIMITED,Information Technology,Acquisitions Via Replacement Fund
37UE,Gedling Borough Council,1000902,07/07/2017,40660736,"1,532.19 ",ADT FIRE AND SECURITY PLC,Public Offices,Administrative Equipment
37UE,Gedling Borough Council,1000201,07/08/2017,40660977,"1,533.00 ",UNIVAR LTD,Carlton Forum Leisure Centre,Chemicals
37UE,Gedling Borough Council,1000822,07/07/2017,40660736,"1,535.00 ",CENTRAL SECURITY SYSTEMS LIMITED,Comm Protection & Dog Control,Operational Equipment
37UE,Gedling Borough Council,1017104,01/09/2017,40661133,"1,537.00 ",JWP SERVICES,Richard Herrod Centre,General Repairs
37UE,Gedling Borough Council,1000833,12/07/2017,40660780,"1,537.20 ",COLONEL FRANK SEELY ACADEMY,Calverton Leisure Centre,Fuel Oil
37UE,Gedling Borough Council,1017109,24/05/2017,40660379,"1,539.96 ",GLOBAL AUDIO VISUAL SOLUTIONS LTD,Carlton Forum Leisure Centre,General Materials
37UE,Gedling Borough Council,1004160,07/08/2017,40660977,"1,541.00 ",CITY REWINDS & DRIVES LTD,Carlton Forum Leisure Centre,General Repairs
37UE,Gedling Borough Council,1000201,16/06/2017,40660537,"1,546.10 ",UNIVAR LTD,Arnold Leisure Centre,Chemicals
37UE,Gedling Borough Council,1005587,03/05/2017,40660153,"1,550.07 ",TOTAL GAS AND POWER,Redhill Leisure Centre,Electricity
37UE,Gedling Borough Council,1001362,28/06/2017,40660654,"1,550.65 ",BABBINGTON HALL KENNELS & CATTERY,Comm Protection & Dog Control,External Contractor - Stray Dogs
37UE,Gedling Borough Council,1001614,30/06/2017,40660658,"1,552.30 ",CROMWELL POLYTHENE LTD,Street Care,General Materials
37UE,Gedling Borough Council,1001614,06/09/2017,40661163,"1,552.30 ",CROMWELL POLYTHENE LTD,Street Care,General Materials
37UE,Gedling Borough Council,1000695,19/07/2017,40660846,"1,553.40 ",ZOGGS INTERNATIONAL LTD.,Leisure & Culture,Stock Account
37UE,Gedling Borough Council,1005587,30/06/2017,40660658,"1,555.78 ",TOTAL GAS AND POWER,Arnold Leisure Centre,Gas
37UE,Gedling Borough Council,1001764,10/05/2017,40660227,"1,560.00 ",DOLPHIN MOBILITY EAST MIDLANDS LTD,Public Protection,Improvement Grants
37UE,Gedling Borough Council,1000833,31/05/2017,40660446,"1,562.96 ",COLONEL FRANK SEELY ACADEMY,Calverton Leisure Centre,Fuel Oil
37UE,Gedling Borough Council,1003158,14/06/2017,40660531,"1,565.00 ",DJB CONTRACTS,Parks,External Contractor
37UE,Gedling Borough Council,1017201,02/06/2017,40660453,"1,570.00 ",SOUND ASSOCIATES LIMITED,Arnold Theatre,General Repairs
37UE,Gedling Borough Council,1005587,30/08/2017,40661125,"1,574.10 ",TOTAL GAS AND POWER,Redhill Leisure Centre,Electricity
37UE,Gedling Borough Council,1005470,20/09/2017,40661255,"1,575.00 ",NO5 CHAMBERS - BARRISTERS FEES,Legal Services,Legal & Professional Services
37UE,Gedling Borough Council,1000157,21/07/2017,40660852,"1,577.39 ",CIPFA - Subscriptions,Financial Services,Consultancy Fees
37UE,Gedling Borough Council,1005587,08/05/2017,40660162,"1,583.65 ",TOTAL GAS AND POWER,Richard Herrod Centre,Gas
37UE,Gedling Borough Council,1001327,24/05/2017,40660379,"1,593.00 ",STERLING HYDROTECH LTD,Arnold Leisure Centre,Operational Equipment
37UE,Gedling Borough Council,1003346,05/06/2017,40660476,"1,598.00 ",RESOLUTION DATA MANAGEMENT LTD,Information Technology,Software Licence & Maintenance
37UE,Gedling Borough Council,1005587,31/05/2017,40660446,"1,605.32 ",TOTAL GAS AND POWER,Public Offices,Gas
37UE,Gedling Borough Council,1004705,05/05/2017,40660159,"1,607.26 ",BROOKFORGE LTD,Carlton Forum Leisure Centre,Operational Equipment
37UE,Gedling Borough Council,1017463,15/09/2017,40661225,"1,610.40 ",MJW HERITAGE CONSERVATION (MR MARK JONATHAN WILKINSON),Development Management,Consultancy Fees
37UE,Gedling Borough Council,1005587,18/08/2017,40661036,"1,611.05 ",TOTAL GAS AND POWER,Redhill Leisure Centre,Electricity
37UE,Gedling Borough Council,1000203,05/05/2017,40660159,"1,625.40 ",E.ON,Car Parks,Electricity
37UE,Gedling Borough Council,1000695,20/09/2017,40661255,"1,629.80 ",ZOGGS INTERNATIONAL LTD.,Leisure & Culture,Stock Account
37UE,Gedling Borough Council,1017463,14/08/2017,40661023,"1,633.28 ",MJW HERITAGE CONSERVATION (MR MARK JONATHAN WILKINSON),Development Management,Consultancy Fees
37UE,Gedling Borough Council,1017463,15/05/2017,40660232,"1,640.56 ",MJW HERITAGE CONSERVATION (MR MARK JONATHAN WILKINSON),Development Management,Consultancy Fees
37UE,Gedling Borough Council,1004888,22/09/2017,40661269,"1,645.00 ",PARAMOUNT  HOTEL,Housing Needs,Other Services
37UE,Gedling Borough Council,1001578,01/09/2017,40661133,"1,654.67 ",PHOENIX SOFTWARE,Information Technology,Computing
37UE,Gedling Borough Council,1017400,30/08/2017,40661125,"1,656.00 ",REACT PROPERTY MAINTENANCE,Comm Protection & Dog Control,Projects & Activities
37UE,Gedling Borough Council,1005316,03/05/2017,40660153,"1,665.00 ",TOM HARE - DESIGNER,Parks,Maintenance
37UE,Gedling Borough Council,1005587,02/08/2017,40660950,"1,675.34 ",TOTAL GAS AND POWER,Richard Herrod Centre,Electricity
37UE,Gedling Borough Council,1000158,19/06/2017,40660581,"1,680.00 ",POST OFFICE LTD,Fleet Management,Vehicle Licences
37UE,Gedling Borough Council,1002955,02/06/2017,40660453,"1,682.01 ",FRONTLINE RECRUITMENT NOTTINGHAM LTD,Waste Management,Agency Staff
37UE,Gedling Borough Council,1005587,30/06/2017,40660658,"1,686.49 ",TOTAL GAS AND POWER,Richard Herrod Centre,Electricity
37UE,Gedling Borough Council,1005205,22/09/2017,40661269,"1,687.50 ",TERMINALFOUR SOLUTIONS,Information Technology,Software Licence & Maintenance
37UE,Gedling Borough Council,1017065,19/05/2017,40660312,"1,687.61 ",MARSTONS PLC,Leisure & Culture,Stock Account
37UE,Gedling Borough Council,1005188,05/06/2017,40660476,"1,700.29 ",PRISM MEDICAL UK WESTHOLME DIVISION,Public Protection,Improvement Grants
37UE,Gedling Borough Council,1017065,03/07/2017,40660702,"1,705.27 ",MARSTONS PLC,Leisure & Culture,Stock Account
37UE,Gedling Borough Council,1001764,15/05/2017,40660232,"1,715.00 ",DOLPHIN MOBILITY EAST MIDLANDS LTD,Public Protection,Improvement Grants
37UE,Gedling Borough Council,1017065,05/05/2017,40660159,"1,719.23 ",MARSTONS PLC,Leisure & Culture,Stock Account
37UE,Gedling Borough Council,1006035,22/09/2017,40661269,"1,720.00 ",CHAMELEON EDUCATION SERVICES GROUP LIMITED,Localities,Projects & Activities
37UE,Gedling Borough Council,1017065,30/08/2017,40661125,"1,725.56 ",MARSTONS PLC,Leisure & Culture,Stock Account
37UE,Gedling Borough Council,1005587,01/09/2017,40661133,"1,728.93 ",TOTAL GAS AND POWER,Richard Herrod Centre,Electricity
37UE,Gedling Borough Council,1002955,21/07/2017,40660852,"1,732.51 ",FRONTLINE RECRUITMENT NOTTINGHAM LTD,Street Care,Agency Staff
37UE,Gedling Borough Council,1000205,19/04/2017,40660029,"1,734.89 ",SEVERN TRENT WATER LTD,Carlton Forum Leisure Centre,Water Charges (Metered)
37UE,Gedling Borough Council,1000812,08/09/2017,40661167,"1,751.35 ",MITCHELL DIESEL LIMITED,Fleet Management,Vehicle Parts
37UE,Gedling Borough Council,1000692,15/09/2017,40661225,"1,759.28 ",BRIAN COOPER ARCHITECT LTD,Public Protection,Improvement Grants
37UE,Gedling Borough Council,1001928,17/05/2017,40660270,"1,760.00 ",PREMIER SOLUTIONS (NOTTM) LTD,Redhill Leisure Centre,General Materials
37UE,Gedling Borough Council,1017415,21/04/2017,40660068,"1,767.87 ",JORDAN LEISURE SYSTEMS LTD,Carlton Forum Leisure Centre,Operational Equipment
37UE,Gedling Borough Council,1000158,18/09/2017,40661228,"1,775.00 ",POST OFFICE LTD,Fleet Management,Vehicle Licences
37UE,Gedling Borough Council,1017340,05/05/2017,40660159,"1,791.66 ",I. LOWE T/A ROUTE 1 TRAVEL,Democratic Mgt & Representation,Other Services
37UE,Gedling Borough Council,1017340,02/06/2017,40660453,"1,791.66 ",I. LOWE T/A ROUTE 1 TRAVEL,Democratic Mgt & Representation,Other Services
37UE,Gedling Borough Council,1017340,05/07/2017,40660706,"1,791.66 ",I. LOWE T/A ROUTE 1 TRAVEL,Democratic Mgt & Representation,Other Services
37UE,Gedling Borough Council,1017340,02/08/2017,40660950,"1,791.66 ",I. LOWE T/A ROUTE 1 TRAVEL,Democratic Mgt & Representation,Other Services
37UE,Gedling Borough Council,1017340,01/09/2017,40661133,"1,791.66 ",I. LOWE T/A ROUTE 1 TRAVEL,Democratic Mgt & Representation,Other Services
37UE,Gedling Borough Council,1000203,24/07/2017,40660889,"1,792.76 ",E.ON,Car Parks,Electricity
37UE,Gedling Borough Council,1017435,07/04/2017,40659978,"1,796.58 ",ELEANOR STOBART - CONSULTANT,Comm Protection & Dog Control,Crime Prevention
37UE,Gedling Borough Council,1003917,09/06/2017,40660485,"1,800.00 ",CLEAR SKIES SOFTWARE LTD,Information Technology,Software Licence & Maintenance
37UE,Gedling Borough Council,1002038,14/07/2017,40660789,"1,800.00 ",KEEP BRITAIN TIDY,Street Care,General Materials
37UE,Gedling Borough Council,1000734,16/06/2017,40660537,"1,801.96 ",PARTIC MOTOR SPARES LTD.,Fleet Management,Vehicle Parts
37UE,Gedling Borough Council,1002142,14/07/2017,40660789,"1,803.53 ",THE CARLTON ACADEMY,Carlton Forum Leisure Centre,Gas
37UE,Gedling Borough Council,1002955,21/07/2017,40660852,"1,803.98 ",FRONTLINE RECRUITMENT NOTTINGHAM LTD,Waste Management,Agency Staff
37UE,Gedling Borough Council,1001327,19/07/2017,40660846,"1,807.00 ",STERLING HYDROTECH LTD,Carlton Forum Leisure Centre,Joint Use maintenance
37UE,Gedling Borough Council,1000078,15/09/2017,40661225,"1,810.40 ",BROWNE JACOBSON LLP,Legal Services,Legal & Professional Services
37UE,Gedling Borough Council,1017463,28/06/2017,40660654,"1,814.56 ",MJW HERITAGE CONSERVATION (MR MARK JONATHAN WILKINSON),Development Management,Consultancy Fees
37UE,Gedling Borough Council,1004359,18/09/2017,40661227,"1,820.00 ",M & G SERVICES LTD,Public Land & Buildings,Consultancy Fees
37UE,Gedling Borough Council,1000833,27/09/2017,40661317,"1,831.64 ",COLONEL FRANK SEELY ACADEMY,Calverton Leisure Centre,Electricity
37UE,Gedling Borough Council,1006035,08/09/2017,40661167,"1,832.00 ",CHAMELEON EDUCATION SERVICES GROUP LIMITED,Localities,Projects & Activities
37UE,Gedling Borough Council,1017463,12/07/2017,40660780,"1,833.28 ",MJW HERITAGE CONSERVATION (MR MARK JONATHAN WILKINSON),Development Management,Consultancy Fees
37UE,Gedling Borough Council,1005696,31/05/2017,40660446,"1,845.00 ",PICK EVERARD,Leisure & Culture,Miscellaneous Capital Expenses
37UE,Gedling Borough Council,1005587,21/06/2017,40660590,-680.82 ,TOTAL GAS AND POWER,Richard Herrod Centre,Electricity
37UE,Gedling Borough Council,1005587,21/06/2017,40660590,-552.74 ,TOTAL GAS AND POWER,Richard Herrod Centre,Electricity
37UE,Gedling Borough Council,1005587,21/06/2017,40660590,-931.77 ,TOTAL GAS AND POWER,Richard Herrod Centre,Electricity
37UE,Gedling Borough Council,1005587,21/06/2017,40660590,"-1,930.38 ",TOTAL GAS AND POWER,Richard Herrod Centre,Electricity
37UE,Gedling Borough Council,1005587,21/06/2017,40660590,"1,874.75 ",TOTAL GAS AND POWER,Richard Herrod Centre,Electricity
37UE,Gedling Borough Council,1000205,21/04/2017,40660068,"1,879.47 ",SEVERN TRENT WATER LTD,Redhill Leisure Centre,Water Charges (Metered)
37UE,Gedling Borough Council,1017375,16/08/2017,40661031,"1,883.65 ",HERONRIDGE SERVICES (NOTTM) LTD,Arnold Theatre,Base Budget Maintenance
37UE,Gedling Borough Council,1003916,26/07/2017,40660896,"1,892.00 ",PRINT IMAGE NETWORK LTD,Elections,Printing
37UE,Gedling Borough Council,1000833,10/05/2017,40660227,"1,893.07 ",COLONEL FRANK SEELY ACADEMY,Calverton Leisure Centre,Electricity
37UE,Gedling Borough Council,1002955,05/07/2017,40660706,"1,915.03 ",FRONTLINE RECRUITMENT NOTTINGHAM LTD,Street Care,Agency Staff
37UE,Gedling Borough Council,1017007,03/05/2017,40660153,"1,923.67 ",THE NATIONAL LEAFLET COMPANY,Communications & Publicity,Publications
37UE,Gedling Borough Council,1003124,21/06/2017,40660590,"1,928.30 ",PFS FIRE & SECURITY LTD,Richard Herrod Centre,General Repairs
37UE,Gedling Borough Council,1000513,23/06/2017,40660608,"1,947.00 ",DORMA UK LTD - SERVICE DIVISION,Public Offices,Maintenance
37UE,Gedling Borough Council,1004988,16/06/2017,40660537,"1,950.00 ",RIGBY TAYLOR LTD,Parks,General Materials
37UE,Gedling Borough Council,1003142,12/05/2017,40660228,"1,957.00 ",GOODBROOKS ELECTRICAL SERVICES LTD,Public Offices,General Repairs
37UE,Gedling Borough Council,1005614,05/05/2017,40660159,"1,968.37 ",DISTRICT SURVEYORS ASSOCIATION LTD T/A LABC,Building Control Fee Earning Account,Subscriptions
37UE,Gedling Borough Council,1002537,05/05/2017,40660159,"1,973.28 ",TRISCAN SYSTEMS LTD,Fleet Management,Operational Equipment
37UE,Gedling Borough Council,1000025,14/07/2017,40660789,"1,987.47 ",J P LENNARD LTD,Carlton Forum Leisure Centre,Publicity & Promotion
37UE,Gedling Borough Council,1000902,08/09/2017,40661167,"1,995.00 ",ADT FIRE AND SECURITY PLC,Property Services,Miscellaneous Capital Expenses
37UE,Gedling Borough Council,1002743,26/05/2017,40660382,"2,000.00 ",FRAMA (UK) LTD,Postages,Postages
37UE,Gedling Borough Council,1002743,16/06/2017,40660537,"2,000.00 ",FRAMA (UK) LTD,Postages,Postages
37UE,Gedling Borough Council,1005587,08/05/2017,40660162,"2,032.47 ",TOTAL GAS AND POWER,Public Offices,Gas
37UE,Gedling Borough Council,1000734,12/05/2017,40660228,"2,038.18 ",PARTIC MOTOR SPARES LTD.,Fleet Management,Vehicle Parts
37UE,Gedling Borough Council,1017067,03/05/2017,40660153,"2,041.00 ",C P SOLUTIONS,Planning Policy,Consultancy Fees
37UE,Gedling Borough Council,1017375,12/04/2017,40660023,"2,055.86 ",HERONRIDGE SERVICES (NOTTM) LTD,Richard Herrod Centre,Base Budget Maintenance
37UE,Gedling Borough Council,1005587,28/04/2017,40660124,"2,062.39 ",TOTAL GAS AND POWER,Arnold Leisure Centre,Gas
37UE,Gedling Borough Council,1005587,28/04/2017,40660124,"-4,327.25 ",TOTAL GAS AND POWER,Public Offices,Electricity
37UE,Gedling Borough Council,1005587,28/04/2017,40660124,"2,084.05 ",TOTAL GAS AND POWER,Richard Herrod Centre,Electricity
37UE,Gedling Borough Council,1004846,31/05/2017,40660446,"2,086.82 ",NSL LIMITED,Car Parks,External Contractor
37UE,Gedling Borough Council,1004846,28/06/2017,40660654,"2,086.82 ",NSL LIMITED,Car Parks,External Contractor
37UE,Gedling Borough Council,1004846,02/08/2017,40660950,"2,086.82 ",NSL LIMITED,Car Parks,External Contractor
37UE,Gedling Borough Council,1004846,30/08/2017,40661125,"2,086.82 ",NSL LIMITED,Car Parks,External Contractor
37UE,Gedling Borough Council,1004846,29/09/2017,40661323,"2,086.82 ",NSL LIMITED,Car Parks,External Contractor
37UE,Gedling Borough Council,1017470,05/05/2017,40660159,"2,100.00 ",DENIS G HILL HERITAGE CONSULTANT,The Arts & Tourism,Publicity & Promotion
37UE,Gedling Borough Council,1005587,26/06/2017,40660644,"2,103.24 ",TOTAL GAS AND POWER,Parks,Electricity
37UE,Gedling Borough Council,1002955,19/04/2017,40660029,"2,126.76 ",FRONTLINE RECRUITMENT NOTTINGHAM LTD,Waste Management,Agency Staff
37UE,Gedling Borough Council,1005185,21/07/2017,40660852,"2,140.50 ",GB AIR CONDITIONING SERVICES,Public Offices,Administrative Equipment
37UE,Gedling Borough Council,1017413,11/09/2017,40661212,"2,142.00 ",CRAEMER UK LTD,Waste Management,Bin Purchases
37UE,Gedling Borough Council,1005587,03/07/2017,40660702,"2,151.44 ",TOTAL GAS AND POWER,Public Offices,Gas
37UE,Gedling Borough Council,1000078,19/07/2017,40660846,"2,158.52 ",BROWNE JACOBSON LLP,Legal Services,Legal & Professional Services
37UE,Gedling Borough Council,1000143,20/09/2017,40661255,"2,161.08 ",CCS MEDIA LTD.,Information Technology,Hardware Maintenance
37UE,Gedling Borough Council,1002537,15/09/2017,40661225,"2,164.16 ",TRISCAN SYSTEMS LTD,Fleet Management,Operational Equipment
37UE,Gedling Borough Council,1017512,06/09/2017,40661163,"2,168.64 ",CHAMPION CONTRACT SERVICES LTD,Development Management,Consultancy Fees
37UE,Gedling Borough Council,1004691,12/07/2017,40660780,"2,170.00 ",RSM RISK ASSURANCE SERVICES LLP,Financial Services,Consultancy Fees
37UE,Gedling Borough Council,1002955,04/08/2017,40660953,"2,173.15 ",FRONTLINE RECRUITMENT NOTTINGHAM LTD,Waste Management,Agency Staff
37UE,Gedling Borough Council,1002142,02/06/2017,40660453,"2,173.67 ",THE CARLTON ACADEMY,Carlton Forum Leisure Centre,Gas
37UE,Gedling Borough Council,1001764,03/07/2017,40660702,"2,180.00 ",DOLPHIN MOBILITY EAST MIDLANDS LTD,Public Protection,Improvement Grants
37UE,Gedling Borough Council,1017425,04/09/2017,40661160,"2,199.84 ",GRUNDY AGRICULTURAL,Fleet Management,Vehicle Parts
37UE,Gedling Borough Council,1017435,11/08/2017,40660995,"2,199.90 ",ELEANOR STOBART - CONSULTANT,Comm Protection & Dog Control,Crime Prevention
37UE,Gedling Borough Council,1017445,26/04/2017,40660115,"2,200.00 ",T.C. HARRISON JCB,Street Care,Operational Equipment
37UE,Gedling Borough Council,1002955,04/08/2017,40660953,"2,204.83 ",FRONTLINE RECRUITMENT NOTTINGHAM LTD,Street Care,Agency Staff
37UE,Gedling Borough Council,1001783,05/05/2017,40660159,"2,215.00 ",APSE,Corporate Management,Subscriptions
37UE,Gedling Borough Council,1001327,28/06/2017,40660654,"2,223.00 ",STERLING HYDROTECH LTD,Calverton Leisure Centre,Joint Use maintenance
37UE,Gedling Borough Council,1005587,08/05/2017,40660162,"2,239.54 ",TOTAL GAS AND POWER,Parks,Electricity
37UE,Gedling Borough Council,1003158,30/06/2017,40660658,"2,245.00 ",DJB CONTRACTS,Parks,General Repairs
37UE,Gedling Borough Council,1017502,14/07/2017,40660789,"2,250.00 ",COOLAIR BUS & RAIL LTD T/A COOLAIR LOGAN,Fleet Management,Vehicle Parts
37UE,Gedling Borough Council,1005587,01/09/2017,40661133,"2,256.24 ",TOTAL GAS AND POWER,Parks,Electricity
37UE,Gedling Borough Council,1017065,08/09/2017,40661167,"2,272.48 ",MARSTONS PLC,Leisure & Culture,Stock Account
37UE,Gedling Borough Council,1000001,24/07/2017,40660889,"2,280.00 ",FLYING HIGH EXPRESSIVE ARTS COMPANY,Leisure & Culture,Theatre Ticket Payments
37UE,Gedling Borough Council,1001018,16/08/2017,40661031,"2,280.00 ",FOREST FARM TREE SERVICES,Parks,External Contractor
37UE,Gedling Borough Council,1017376,26/05/2017,40660382,"2,294.85 ",IKEN BUSINESS LTD,Legal Services,Consultancy Fees
37UE,Gedling Borough Council,1002955,21/07/2017,40660852,"2,295.18 ",FRONTLINE RECRUITMENT NOTTINGHAM LTD,Waste Management,Agency Staff
37UE,Gedling Borough Council,1005618,10/07/2017,40660778,"2,300.00 ",ENVIRO TECHNOLOGY SERVICES PLC,Environmental Protection,Operational Equipment
37UE,Gedling Borough Council,1017400,12/04/2017,40660023,"2,320.00 ",REACT PROPERTY MAINTENANCE,Comm Protection & Dog Control,Projects & Activities
37UE,Gedling Borough Council,1004307,12/04/2017,40660023,"2,353.00 ",THE RETENTION PEOPLE,Carlton Forum Leisure Centre,Operational Equipment
37UE,Gedling Borough Council,1005678,19/07/2017,40660846,"2,381.35 ",SHIELD IT SOLUTIONS LIMITED,Parks & Street Care,Miscellaneous Capital Expenses
37UE,Gedling Borough Council,1000855,24/07/2017,40660889,"2,387.00 ",JAZZ HOUSE NOTTINGHAM LIMITED,Leisure & Culture,Theatre Ticket Payments
37UE,Gedling Borough Council,1005955,19/05/2017,40660312,"2,400.00 ",SLACK & ROSE PAINTING AND INTERIORS LTD,Public Offices,Maintenance
37UE,Gedling Borough Council,1001675,22/05/2017,40660365,"2,458.12 ",CIVICA UK LTD,Information Technology,Software Licence & Maintenance
37UE,Gedling Borough Council,1002474,19/07/2017,40660846,"2,470.00 ",FLORIDA MARQUEES LTD,Events & Play,Projects & Activities
37UE,Gedling Borough Council,1000463,24/05/2017,40660379,"2,482.00 ",WOODWARD BUILDING & PLUMBING SERVS,Public Protection,Improvement Grants
37UE,Gedling Borough Council,1000310,03/05/2017,40660153,"2,520.40 ",EDWARDS METAL WINDOWS,Arnold Leisure Centre,Base Budget Maintenance
37UE,Gedling Borough Council,1002142,02/06/2017,40660453,"2,521.44 ",THE CARLTON ACADEMY,Carlton Forum Leisure Centre,Electricity
37UE,Gedling Borough Council,1017376,22/09/2017,40661269,"2,555.28 ",IKEN BUSINESS LTD,Legal Services,Books & Publications
37UE,Gedling Borough Council,1003677,15/09/2017,40661225,"2,560.00 ",STEVE KERR PAINTING & DECORATING,Corporate Administration,Maintenance
37UE,Gedling Borough Council,1001276,21/07/2017,40660852,"2,560.13 ",ST JOHN AMBULANCE-NOTTINGHAMSHIRE,Events & Play,Projects & Activities
37UE,Gedling Borough Council,1000833,26/05/2017,40660382,"2,566.43 ",COLONEL FRANK SEELY ACADEMY,Calverton Leisure Centre,Fuel Oil
37UE,Gedling Borough Council,1002955,26/05/2017,40660382,"2,579.82 ",FRONTLINE RECRUITMENT NOTTINGHAM LTD,Waste Management,Agency Staff
37UE,Gedling Borough Council,1017215,08/09/2017,40661167,"2,582.00 ",AQUAMAT LTD,Calverton Leisure Centre,Joint Use maintenance
37UE,Gedling Borough Council,1017512,23/08/2017,40661078,"2,596.24 ",CHAMPION CONTRACT SERVICES LTD,Development Management,Consultancy Fees
37UE,Gedling Borough Council,1002955,09/06/2017,40660485,"2,623.92 ",FRONTLINE RECRUITMENT NOTTINGHAM LTD,Waste Management,Agency Staff
37UE,Gedling Borough Council,1000833,13/09/2017,40661223,"2,629.41 ",COLONEL FRANK SEELY ACADEMY,Calverton Leisure Centre,Electricity
37UE,Gedling Borough Council,1000167,26/05/2017,40660382,"2,640.00 ",PROSPECT PLAYERS,Leisure & Culture,Theatre Ticket Payments
37UE,Gedling Borough Council,1000319,14/07/2017,40660789,"2,642.50 ",H & V SERVICES,Community Centres,General Repairs
37UE,Gedling Borough Council,1005587,01/09/2017,40661133,"2,650.95 ",TOTAL GAS AND POWER,Arnold Leisure Centre,Electricity
37UE,Gedling Borough Council,1005792,01/09/2017,40661133,"2,668.00 ",DATA INTERCHANGE PLC,Information Technology,Software Licence & Maintenance
37UE,Gedling Borough Council,1005022,17/05/2017,40660270,"2,680.00 ",CORETX MANAGE LIMITED,Information Technology,Hardware Maintenance
37UE,Gedling Borough Council,1017400,09/08/2017,40660984,"2,680.50 ",REACT PROPERTY MAINTENANCE,Comm Protection & Dog Control,Projects & Activities
37UE,Gedling Borough Council,1017496,08/09/2017,40661167,"2,690.00 ",ALLIANCE CONSULTING SOLUTIONS LTD,Parks,General Repairs
37UE,Gedling Borough Council,1003158,25/08/2017,40661086,"2,691.00 ",DJB CONTRACTS,Parks,General Repairs
37UE,Gedling Borough Council,1005587,26/05/2017,40660382,"2,720.03 ",TOTAL GAS AND POWER,Public Offices,Electricity
37UE,Gedling Borough Council,1000158,26/04/2017,40660116,"2,720.50 ",POST OFFICE LTD,Fleet Management,Vehicle Licences
37UE,Gedling Borough Council,1000100,12/04/2017,40660023,"2,740.00 ",NEWSTEAD PARISH COUNCIL,Community Grants,Grants
37UE,Gedling Borough Council,1017502,19/07/2017,40660846,"2,750.00 ",COOLAIR BUS & RAIL LTD T/A COOLAIR LOGAN,Fleet Management,Vehicle Parts
37UE,Gedling Borough Council,1017509,21/06/2017,40660590,"2,750.00 ",THE RISK FACTOR LTD,Insurance Premiums,Consultancy Fees
37UE,Gedling Borough Council,1000399,26/04/2017,40660115,"2,760.00 ",EARTH ANCHORS LTD,Parks,Maintenance
37UE,Gedling Borough Council,1000692,19/04/2017,40660029,"2,766.00 ",BRIAN COOPER ARCHITECT LTD,Public Protection,Improvement Grants
37UE,Gedling Borough Council,1003158,18/08/2017,40661036,"2,770.00 ",DJB CONTRACTS,Car Parks,Maintenance
37UE,Gedling Borough Council,1017448,25/09/2017,40661273,"2,778.70 ",LIFT & ENGINEERING SERVICES LTD,Public Protection,Improvement Grants
37UE,Gedling Borough Council,1004691,23/08/2017,40661078,"2,790.00 ",RSM RISK ASSURANCE SERVICES LLP,Financial Services,Consultancy Fees
37UE,Gedling Borough Council,1002955,21/06/2017,40660593,"2,790.92 ",FRONTLINE RECRUITMENT NOTTINGHAM LTD,Parks,Agency Staff
37UE,Gedling Borough Council,1002955,25/08/2017,40661086,"2,793.80 ",FRONTLINE RECRUITMENT NOTTINGHAM LTD,Street Care,Agency Staff
37UE,Gedling Borough Council,1017510,28/06/2017,40660654,"2,800.00 ",J A KENT SERVICES (EAST MIDLANDS) LTD,Community Centres,General Repairs
37UE,Gedling Borough Council,1002142,14/07/2017,40660789,"2,800.05 ",THE CARLTON ACADEMY,Carlton Forum Leisure Centre,Electricity
37UE,Gedling Borough Council,1000502,14/07/2017,40660789,"2,809.00 ",C.C.T. ELECTRICAL LTD,Events & Play,Projects & Activities
37UE,Gedling Borough Council,1005522,30/06/2017,40660658,"2,810.32 ",DERWENT HOUSING ASSOCIATION,Housing Needs,Premises Rents
37UE,Gedling Borough Council,1005581,09/06/2017,40660485,"2,836.02 ",BOTTOMLINE TECHNOLOGIES LIMITED,Information Technology,Software Licence & Maintenance
37UE,Gedling Borough Council,1000205,21/04/2017,40660068,"2,848.77 ",SEVERN TRENT WATER LTD,Richard Herrod Centre,Drainage Charges
37UE,Gedling Borough Council,1003087,22/09/2017,40661269,"2,850.00 ",NATHAN BAINBRIDGE T/A SMALLKID DESIGN,Parks,Projects & Activities
37UE,Gedling Borough Council,1001327,17/05/2017,40660270,"2,852.50 ",STERLING HYDROTECH LTD,Carlton Forum Leisure Centre,Operational Equipment
37UE,Gedling Borough Council,1017139,12/04/2017,40660023,"2,885.80 ",HARWORTH ESTATES INVESTMENTS LTD,Parks,Rent - Other
37UE,Gedling Borough Council,1017139,05/07/2017,40660706,"2,885.80 ",HARWORTH ESTATES INVESTMENTS LTD,Parks,Rent - Other
37UE,Gedling Borough Council,1017555,20/09/2017,40661255,"2,895.00 ",HEAT HOLMES,Public Protection,Improvement Grants
37UE,Gedling Borough Council,1002142,05/05/2017,40660159,"2,919.58 ",THE CARLTON ACADEMY,Carlton Forum Leisure Centre,Electricity
37UE,Gedling Borough Council,1002955,21/04/2017,40660068,"2,938.35 ",FRONTLINE RECRUITMENT NOTTINGHAM LTD,Parks,Agency Staff
37UE,Gedling Borough Council,1000151,05/06/2017,40660476,"2,944.06 ",THE PERFORMING RIGHT SOCIETY LTD,Richard Herrod Centre,Licences
37UE,Gedling Borough Council,1005587,07/08/2017,40660977,"2,974.93 ",TOTAL GAS AND POWER,Public Offices,Electricity
37UE,Gedling Borough Council,1004315,07/07/2017,40660736,"2,989.37 ",HOWARD MARSHALL ENGINEERING LTD,Insurance Premiums,Insurance Claims
37UE,Gedling Borough Council,1000833,26/07/2017,40660896,"2,993.01 ",COLONEL FRANK SEELY ACADEMY,Calverton Leisure Centre,Electricity
37UE,Gedling Borough Council,1005689,16/06/2017,40660537,"2,993.86 ",COMPLETE MAILINGS LTD,Revenues-Local Taxation,Postages
37UE,Gedling Borough Council,1003271,31/07/2017,40660948,"3,000.00 ",DERBYSHIRE COUNTY COUNCIL,Renovation Grants,Subscriptions
37UE,Gedling Borough Council,1001706,09/08/2017,40660984,"3,000.00 ",FERNMAC LIMITED,Carlton Forum Leisure Centre,Operational Equipment
37UE,Gedling Borough Council,1001852,03/04/2017,40659971,"3,000.00 ",IDOX SOFTWARE LTD,Information Technology,Operational Equipment
37UE,Gedling Borough Council,1003027,01/09/2017,40661133,"3,000.00 ",WEIGHTMANS LLP,Estates & Valuation,Consultancy Fees
37UE,Gedling Borough Council,1005587,30/08/2017,40661125,"3,002.54 ",TOTAL GAS AND POWER,Public Offices,Electricity
37UE,Gedling Borough Council,1002955,04/08/2017,40660953,"3,003.72 ",FRONTLINE RECRUITMENT NOTTINGHAM LTD,Waste Management,Agency Staff
37UE,Gedling Borough Council,1000170,12/04/2017,40660023,"3,020.00 ",COLWICK PARISH COUNCIL,Community Grants,Grants
37UE,Gedling Borough Council,1005587,10/05/2017,40660227,"3,025.30 ",TOTAL GAS AND POWER,Public Offices,Electricity
37UE,Gedling Borough Council,1005587,02/08/2017,40660950,"3,031.25 ",TOTAL GAS AND POWER,Arnold Leisure Centre,Electricity
37UE,Gedling Borough Council,1002142,05/05/2017,40660159,"3,031.98 ",THE CARLTON ACADEMY,Carlton Forum Leisure Centre,Gas
37UE,Gedling Borough Council,1000001,03/07/2017,40660702,"3,037.31 ",LEOLA MUSIC LTD,Leisure & Culture,Theatre Ticket Payments
37UE,Gedling Borough Council,1000191,10/07/2017,40660778,"3,049.42 ",ROYAL MAIL,Elections,Postages
37UE,Gedling Borough Council,1002955,24/05/2017,40660379,"3,059.72 ",FRONTLINE RECRUITMENT NOTTINGHAM LTD,Parks,Agency Staff
37UE,Gedling Borough Council,1017413,09/06/2017,40660485,"3,060.00 ",CRAEMER UK LTD,Waste Management,Bin Purchases
37UE,Gedling Borough Council,1000108,12/04/2017,40660023,"3,062.00 ",BESTWOOD ST ALBANS PARISH COUNCIL,Community Grants,Grants
37UE,Gedling Borough Council,1000191,07/06/2017,40660482,"3,062.23 ",ROYAL MAIL,Elections,Postages
37UE,Gedling Borough Council,1000157,31/07/2017,40660948,"3,063.59 ",CIPFA - Subscriptions,Financial Services,Consultancy Fees
37UE,Gedling Borough Council,1005185,29/09/2017,40661323,"3,093.00 ",GB AIR CONDITIONING SERVICES,Public Offices,Operational Equipment
37UE,Gedling Borough Council,1005460,11/09/2017,40661212,"3,102.60 ",HARLANDS SERVICES LTD,Leisure & Culture,Fees & Charges
37UE,Gedling Borough Council,1005470,21/08/2017,40661066,"3,125.00 ",NO5 CHAMBERS - BARRISTERS FEES,Legal Services,Legal & Professional Services
37UE,Gedling Borough Council,1005587,29/09/2017,40661323,"3,128.85 ",TOTAL GAS AND POWER,Public Offices,Electricity
37UE,Gedling Borough Council,1000833,28/06/2017,40660654,"3,130.74 ",COLONEL FRANK SEELY ACADEMY,Calverton Leisure Centre,Electricity
37UE,Gedling Borough Council,1004643,14/07/2017,40660789,"3,150.00 ",HALAROSE LIMITED,Elections,Other Services
37UE,Gedling Borough Council,1017402,17/05/2017,40660270,"3,168.42 ",ANTHONY COLLINS SOLICITORS LLP,Legal Services,Legal & Professional Services
37UE,Gedling Borough Council,1017065,03/07/2017,40660702,"3,175.52 ",MARSTONS PLC,Leisure & Culture,Stock Account
37UE,Gedling Borough Council,1000297,12/04/2017,40660023,"3,190.00 ",APW (NOTTM) LTD,Public Protection,Improvement Grants
37UE,Gedling Borough Council,1006035,16/08/2017,40661031,"3,200.00 ",CHAMELEON EDUCATION SERVICES GROUP LIMITED,Localities,Projects & Activities
37UE,Gedling Borough Council,1003916,12/07/2017,40660780,"3,254.77 ",PRINT IMAGE NETWORK LTD,Elections,Printing
37UE,Gedling Borough Council,1000695,09/06/2017,40660485,"3,262.80 ",ZOGGS INTERNATIONAL LTD.,Leisure & Culture,Stock Account
37UE,Gedling Borough Council,1000822,23/06/2017,40660608,"3,288.33 ",CENTRAL SECURITY SYSTEMS LIMITED,Comm Protection & Dog Control,Operational Equipment
37UE,Gedling Borough Council,1000317,14/06/2017,40660531,"3,298.00 ",T. GRANT & SON LTD,Public Protection,Improvement Grants
37UE,Gedling Borough Council,1000001,26/07/2017,40660896,"3,300.00 ",CARLTON WAR MEMORIAL,Community Grants,Grants
37UE,Gedling Borough Council,1000440,24/05/2017,40660379,"3,300.00 ",NOTTINGHAMSHIRE COUNTY COUNCIL,Economic Development,Projects & Activities
37UE,Gedling Borough Council,1004777,19/06/2017,40660580,"3,307.50 ",CALE ACCESS UK LTD,Car Parks,External Contractor
37UE,Gedling Borough Council,1000297,26/07/2017,40660896,"3,310.00 ",APW (NOTTM) LTD,Public Protection,Improvement Grants
37UE,Gedling Borough Council,1017470,05/07/2017,40660706,"3,325.00 ",DENIS G HILL HERITAGE CONSULTANT,The Arts & Tourism,Publicity & Promotion
37UE,Gedling Borough Council,1003158,29/09/2017,40661323,"3,330.00 ",DJB CONTRACTS,Car Parks,Maintenance
37UE,Gedling Borough Council,1017375,16/08/2017,40661031,"3,354.36 ",HERONRIDGE SERVICES (NOTTM) LTD,Richard Herrod Centre,Base Budget Maintenance
37UE,Gedling Borough Council,1000613,24/04/2017,40660076,"3,358.95 ",RAVENSHEAD PARISH COUNCIL,Financial Services,Grants
37UE,Gedling Borough Council,1000107,28/04/2017,40660124,"3,393.43 ",NOTTINGHAM CITY COUNCIL,Information Technology,Software Licence & Maintenance
37UE,Gedling Borough Council,1005587,31/05/2017,40660446,"3,394.55 ",TOTAL GAS AND POWER,Arnold Leisure Centre,Gas
37UE,Gedling Borough Council,1004691,26/07/2017,40660896,"3,410.00 ",RSM RISK ASSURANCE SERVICES LLP,Financial Services,Consultancy Fees
37UE,Gedling Borough Council,1005245,21/08/2017,40661066,"3,415.00 ",KINGKRAFT LTD,Parks & Street Care,Miscellaneous Capital Expenses
37UE,Gedling Borough Council,1017007,24/05/2017,40660379,"3,432.52 ",THE NATIONAL LEAFLET COMPANY,Communications & Publicity,Publications
37UE,Gedling Borough Council,1000610,21/06/2017,40660590,"3,445.12 ",TECHNOGYM UK LTD,Redhill Leisure Centre,Operational Equipment
37UE,Gedling Borough Council,1017523,14/08/2017,40661023,"3,456.27 ",WATER PLUS LTD,Parks,Water Charges (Metered)
37UE,Gedling Borough Council,1017386,23/08/2017,40661078,"3,461.51 ",G F TOMLINSON BUILDING LTD,Parks & Street Care,Miscellaneous Capital Expenses
37UE,Gedling Borough Council,1002472,28/04/2017,40660124,"3,464.32 ",INSPIRED TECHNOLOGY SERVICES LTD,Information Technology,Acquisitions Via Replacement Fund
37UE,Gedling Borough Council,1005867,12/05/2017,40660228,"3,471.65 ",WATER CENTRE LTD T/A PREMIER SERVICE & INSTALLATION,Public Protection,Improvement Grants
37UE,Gedling Borough Council,1005031,12/05/2017,40660228,"3,497.60 ",SKYGUARD LIMITED,Health & Safety and Emergency Planning,Operational Equipment
37UE,Gedling Borough Council,1005885,22/09/2017,40661269,"3,498.25 ",CARLTON DESIGN & FABRICATION LTD,Public Protection,Improvement Grants
37UE,Gedling Borough Council,1000244,08/05/2017,40660162,"3,581.41 ",SWEET & MAXWELL LTD.,Legal Services,Books & Publications
37UE,Gedling Borough Council,1001218,14/06/2017,40660531,"3,622.70 ",LODGE TYRE CO LTD,Fleet Management,Tyres
37UE,Gedling Borough Council,1000613,12/04/2017,40660023,"3,652.00 ",RAVENSHEAD PARISH COUNCIL,Community Grants,Grants
37UE,Gedling Borough Council,1002955,02/06/2017,40660453,"3,658.50 ",FRONTLINE RECRUITMENT NOTTINGHAM LTD,Parks,Agency Staff
37UE,Gedling Borough Council,1005233,12/07/2017,40660780,"3,672.85 ","OPEN BOOK INTERNATIONAL LTD, T/A PRACTICAL AV",Parks & Street Care,Miscellaneous Capital Expenses
37UE,Gedling Borough Council,1003925,28/04/2017,40660124,"3,726.45 ",GB SPORT AND LEISURE LTD,Parks,General Materials
37UE,Gedling Borough Council,1002955,31/05/2017,40660446,"3,743.09 ",FRONTLINE RECRUITMENT NOTTINGHAM LTD,Parks,Agency Staff
37UE,Gedling Borough Council,1004309,12/04/2017,40660023,"3,762.00 ",COVALENT SOFTWARE LTD,Information Technology,Software Licence & Maintenance
37UE,Gedling Borough Council,1000205,22/05/2017,40660365,"3,794.14 ",SEVERN TRENT WATER LTD,Public Offices,Drainage Charges
37UE,Gedling Borough Council,1004006,19/05/2017,40660312,"3,800.00 ",DESTIN SOLUTIONS LIMITED,Revenues-Local Taxation,Computing
37UE,Gedling Borough Council,1000317,08/09/2017,40661167,"3,800.00 ",T. GRANT & SON LTD,Public Protection,Improvement Grants
37UE,Gedling Borough Council,1000189,16/08/2017,40661031,"3,814.97 ",VIRGIN MEDIA LTD,Corporate Finance,Phones
37UE,Gedling Borough Council,1004497,09/08/2017,40660985,"3,821.84 ",NOTTINGHAMSHIRE COUNTY COUNCIL,Business Units,Premises Rents
37UE,Gedling Borough Council,1000088,12/04/2017,40660023,"3,844.00 ",BURTON JOYCE PARISH COUNCIL,Community Grants,Grants
37UE,Gedling Borough Council,1002955,16/06/2017,40660537,"3,874.37 ",FRONTLINE RECRUITMENT NOTTINGHAM LTD,Street Care,Agency Staff
37UE,Gedling Borough Council,1000822,21/06/2017,40660593,"3,891.11 ",CENTRAL SECURITY SYSTEMS LIMITED,Comm Protection & Dog Control,Operational Equipment
37UE,Gedling Borough Council,1005902,16/08/2017,40661031,"3,895.00 ",OBAM LIFT SERVICES LTD,Public Protection,Improvement Grants
37UE,Gedling Borough Council,1006035,26/04/2017,40660115,"3,900.00 ",CHAMELEON EDUCATION SERVICES GROUP LIMITED,Localities,Projects & Activities
37UE,Gedling Borough Council,1005233,12/07/2017,40660780,"3,910.06 ","OPEN BOOK INTERNATIONAL LTD, T/A PRACTICAL AV",Parks & Street Care,Miscellaneous Capital Expenses
37UE,Gedling Borough Council,1001783,18/08/2017,40661036,"3,913.00 ",APSE,Corporate Management,Subscriptions
37UE,Gedling Borough Council,1002033,16/08/2017,40661031,"3,922.55 ",TOTAL HYGIENE,Public Protection,Improvement Grants
37UE,Gedling Borough Council,1002955,29/09/2017,40661323,"3,937.57 ",FRONTLINE RECRUITMENT NOTTINGHAM LTD,Street Care,Agency Staff
37UE,Gedling Borough Council,1004497,07/04/2017,40659981,"3,943.19 ",NOTTINGHAMSHIRE COUNTY COUNCIL,Business Units,Premises Rents
37UE,Gedling Borough Council,1000107,05/06/2017,40660476,"3,945.00 ",NOTTINGHAM CITY COUNCIL,Planning Policy,Consultancy Fees
37UE,Gedling Borough Council,1017521,12/07/2017,40660780,"3,948.00 ",WEXER VIRTUAL LTD,Leisure & Culture,Miscellaneous Capital Expenses
37UE,Gedling Borough Council,1005902,28/04/2017,40660124,"3,965.00 ",OBAM LIFT SERVICES LTD,Public Protection,Improvement Grants
37UE,Gedling Borough Council,1000297,20/09/2017,40661255,"3,975.00 ",APW (NOTTM) LTD,Public Protection,Improvement Grants
37UE,Gedling Borough Council,1001783,09/08/2017,40660984,"4,000.00 ",APSE,Corporate Management,Subscriptions
37UE,Gedling Borough Council,1001852,03/04/2017,40659971,"4,000.00 ",IDOX SOFTWARE LTD,Information Technology,Software Licence & Maintenance
37UE,Gedling Borough Council,1005849,20/09/2017,40661255,"4,000.00 ",MICHAEL SALT,Organisational Development,Course Fees
37UE,Gedling Borough Council,1004307,12/04/2017,40660023,"4,000.00 ",THE RETENTION PEOPLE,Redhill Leisure Centre,Recreational Equipment
37UE,Gedling Borough Council,1004888,08/09/2017,40661167,"4,015.00 ",PARAMOUNT  HOTEL,Housing Needs,Other Services
37UE,Gedling Borough Council,1002033,04/08/2017,40660953,"4,027.00 ",TOTAL HYGIENE,Public Protection,Improvement Grants
37UE,Gedling Borough Council,1002955,16/06/2017,40660537,"4,028.77 ",FRONTLINE RECRUITMENT NOTTINGHAM LTD,Parks,Agency Staff
37UE,Gedling Borough Council,1000297,03/05/2017,40660153,"4,030.00 ",APW (NOTTM) LTD,Public Protection,Improvement Grants
37UE,Gedling Borough Council,1000154,26/07/2017,40660896,"4,031.94 ",PHONOGRAPHIC PERFORMANCE LTD,Redhill Leisure Centre,Licences
37UE,Gedling Borough Council,1005867,04/09/2017,40661160,"4,054.00 ",WATER CENTRE LTD T/A PREMIER SERVICE & INSTALLATION,Public Protection,Improvement Grants
37UE,Gedling Borough Council,1000154,26/07/2017,40660896,"4,079.44 ",PHONOGRAPHIC PERFORMANCE LTD,Carlton Forum Leisure Centre,Licences
37UE,Gedling Borough Council,1004359,16/08/2017,40661031,"4,100.00 ",M & G SERVICES LTD,Property Services,Miscellaneous Capital Expenses
37UE,Gedling Borough Council,1001928,15/09/2017,40661225,"4,107.44 ",PREMIER SOLUTIONS (NOTTM) LTD,Carlton Forum Leisure Centre,Operational Equipment
37UE,Gedling Borough Council,1002955,06/09/2017,40661163,"4,112.52 ",FRONTLINE RECRUITMENT NOTTINGHAM LTD,Waste Management,Agency Staff
37UE,Gedling Borough Council,1000115,19/05/2017,40660312,"4,128.00 ",BONINGTON PLAYERS,Leisure & Culture,Theatre Ticket Payments
37UE,Gedling Borough Council,1001327,09/06/2017,40660485,"4,158.00 ",STERLING HYDROTECH LTD,Calverton Leisure Centre,Joint Use maintenance
37UE,Gedling Borough Council,1006045,21/06/2017,40660590,"4,179.00 ",PYRAMID PRESS LTD,Communications & Publicity,Corporate Publications/Consultation
37UE,Gedling Borough Council,1000218,19/04/2017,40660029,"4,211.79 ",OMNICO GROUP UK LIMITED,Information Technology,Software Licence & Maintenance
37UE,Gedling Borough Council,1000297,27/09/2017,40661317,"4,225.00 ",APW (NOTTM) LTD,Public Protection,Improvement Grants
37UE,Gedling Borough Council,1005131,15/09/2017,40661225,"4,237.50 ",SMSR LTD,Communications & Publicity,Corporate Publications/Consultation
37UE,Gedling Borough Council,1001308,28/06/2017,40660654,"4,285.00 ",FOOL'S PARADISE LTD,Events & Play,Projects & Activities
37UE,Gedling Borough Council,1017358,19/05/2017,40660312,"4,320.00 ",INFORM CPI LTD,Revenues-Local Taxation,Computing
37UE,Gedling Borough Council,1000317,29/09/2017,40661323,"4,320.00 ",T. GRANT & SON LTD,Public Protection,Improvement Grants
37UE,Gedling Borough Council,1001424,09/08/2017,40660984,"4,326.80 ",NEWSTEAD MINERS WELFARE TRUST,Business Units,Premises Rents
37UE,Gedling Borough Council,1000297,04/09/2017,40661160,"4,350.00 ",APW (NOTTM) LTD,Public Protection,Improvement Grants
37UE,Gedling Borough Council,1001218,01/09/2017,40661133,"4,366.30 ",LODGE TYRE CO LTD,Fleet Management,Tyres
37UE,Gedling Borough Council,1001764,25/08/2017,40661086,"4,385.00 ",DOLPHIN MOBILITY EAST MIDLANDS LTD,Public Protection,Improvement Grants
37UE,Gedling Borough Council,1017007,19/07/2017,40660846,"4,389.93 ",THE NATIONAL LEAFLET COMPANY,Communications & Publicity,Corporate Publications/Consultation
37UE,Gedling Borough Council,1004201,26/07/2017,40660896,"4,390.40 ",RAM CONSULTANCY LTD,Leisure & Culture,Miscellaneous Capital Expenses
37UE,Gedling Borough Council,1004408,25/08/2017,40661086,"4,416.00 ",SURE24 LTD,Insurance Premiums,Insurance Claims
37UE,Gedling Borough Council,1017357,19/05/2017,40660312,"4,438.00 ",ONE51 ES PLASTICS T/A MGB,Waste Management,Bin Purchases
37UE,Gedling Borough Council,1001424,07/04/2017,40659978,"4,464.18 ",NEWSTEAD MINERS WELFARE TRUST,Business Units,Premises Rents
37UE,Gedling Borough Council,1000317,11/08/2017,40660995,"4,473.00 ",T. GRANT & SON LTD,Public Protection,Improvement Grants
37UE,Gedling Borough Council,1003227,05/07/2017,40660706,"4,510.00 ",PATCO EVENTS LTD,Events & Play,Projects & Activities
37UE,Gedling Borough Council,1005902,29/09/2017,40661323,"4,520.00 ",OBAM LIFT SERVICES LTD,Public Protection,Improvement Grants
37UE,Gedling Borough Council,1000218,03/05/2017,40660153,"4,550.00 ",OMNICO GROUP UK LIMITED,Redhill Leisure Centre,Projects & Activities
37UE,Gedling Borough Council,1017556,25/09/2017,40661273,"4,564.00 ",CREATIVE CARE LTD,Public Protection,Improvement Grants
37UE,Gedling Borough Council,1005684,04/09/2017,40661160,"4,571.03 ",PRINT IMAGE FACILITIES LLP,Registration Of Electors,Postages
37UE,Gedling Borough Council,1017007,06/09/2017,40661163,-846.64 ,THE NATIONAL LEAFLET COMPANY,Communications & Publicity,Publications
37UE,Gedling Borough Council,1017007,06/09/2017,40661163,"4,609.81 ",THE NATIONAL LEAFLET COMPANY,Communications & Publicity,Publications
37UE,Gedling Borough Council,1000317,17/05/2017,40660270,"4,613.00 ",T. GRANT & SON LTD,Public Protection,Improvement Grants
37UE,Gedling Borough Council,1000317,02/06/2017,40660453,"4,703.00 ",T. GRANT & SON LTD,Public Protection,Improvement Grants
37UE,Gedling Borough Council,1001764,12/04/2017,40660023,"4,715.00 ",DOLPHIN MOBILITY EAST MIDLANDS LTD,Public Protection,Improvement Grants
37UE,Gedling Borough Council,1000097,07/06/2017,40660482,"4,747.23 ",NEWARK & SHERWOOD DISTRICT COUNCIL,Arnold Leisure Centre,Employee Salaries
37UE,Gedling Borough Council,1004160,19/04/2017,40660029,"4,825.50 ",CITY REWINDS & DRIVES LTD,Carlton Forum Leisure Centre,Joint Use maintenance
37UE,Gedling Borough Council,1005587,21/06/2017,40660590,"4,842.71 ",TOTAL GAS AND POWER,Arnold Leisure Centre,Electricity
37UE,Gedling Borough Council,1001764,26/07/2017,40660896,"4,850.00 ",DOLPHIN MOBILITY EAST MIDLANDS LTD,Public Protection,Improvement Grants
37UE,Gedling Borough Council,1017392,15/05/2017,40660232,"4,863.20 ",CHRISTINE JAMES (PLANNING) LTD,Development Management,Consultancy Fees
37UE,Gedling Borough Council,1001675,17/07/2017,40660844,"4,879.60 ",CIVICA UK LTD,Housing Benefit Administration,Computing
37UE,Gedling Borough Council,1001218,04/08/2017,40660953,"4,880.65 ",LODGE TYRE CO LTD,Fleet Management,Tyres
37UE,Gedling Borough Council,1000072,15/05/2017,40660232,"4,916.69 ",BT PLC,Financial Services,Phones
37UE,Gedling Borough Council,1000320,18/08/2017,40661036,"4,937.49 ",HILL BROS  NOTTM  LTD.,Public Protection,Improvement Grants
37UE,Gedling Borough Council,1000107,07/08/2017,40660977,"4,951.75 ",NOTTINGHAM CITY COUNCIL,Parks,General Repairs
37UE,Gedling Borough Council,1000886,02/08/2017,40660950,"4,975.00 ",CAPITA TREASURY SOLUTIONS LIMITED,Corporate Income & Expenditure,Debt Management Expenses
37UE,Gedling Borough Council,1000734,16/08/2017,40661031,"4,980.34 ",PARTIC MOTOR SPARES LTD.,Fleet Management,Vehicle Parts
37UE,Gedling Borough Council,1005985,10/07/2017,40660778,"4,995.00 ",EAST MIDLANDS COUNCILS (NOTTINGHAM CITY COUNCIL),Corporate Management,Subscriptions
37UE,Gedling Borough Council,1001327,21/07/2017,40660852,"4,996.00 ",STERLING HYDROTECH LTD,Carlton Forum Leisure Centre,Joint Use maintenance
37UE,Gedling Borough Council,1000151,05/06/2017,40660476,"5,030.80 ",THE PERFORMING RIGHT SOCIETY LTD,Redhill Leisure Centre,Licences
37UE,Gedling Borough Council,1000097,12/04/2017,40660023,"5,035.65 ",NEWARK & SHERWOOD DISTRICT COUNCIL,Organisational Development,Payments To Other Local Authorities
37UE,Gedling Borough Council,1017373,12/04/2017,40660023,"5,044.00 ",VIA EAST MIDLANDS LTD,Land Charges,Other Services
37UE,Gedling Borough Council,1001218,28/07/2017,40660914,"5,045.05 ",LODGE TYRE CO LTD,Fleet Management,Tyres
37UE,Gedling Borough Council,1005587,28/04/2017,40660124,"5,056.32 ",TOTAL GAS AND POWER,Arnold Leisure Centre,Electricity
37UE,Gedling Borough Council,1003243,10/05/2017,40660227,"5,125.38 ",RUSHCLIFFE BOROUGH COUNCIL,Financial Services,Payments To Other Local Authorities
37UE,Gedling Borough Council,1001675,09/06/2017,40660485,"5,150.00 ",CIVICA UK LTD,Housing Benefit Administration,Computing
37UE,Gedling Borough Council,1000072,14/08/2017,40661023,"5,154.27 ",BT PLC,Financial Services,Phones
37UE,Gedling Borough Council,1001218,22/05/2017,40660365,"5,190.10 ",LODGE TYRE CO LTD,Fleet Management,Tyres
37UE,Gedling Borough Council,1000855,12/06/2017,40660530,"5,191.00 ",JAZZ HOUSE NOTTINGHAM LIMITED,Leisure & Culture,Theatre Ticket Payments
37UE,Gedling Borough Council,1005587,03/07/2017,40660702,"5,197.94 ",TOTAL GAS AND POWER,Arnold Leisure Centre,Electricity
37UE,Gedling Borough Council,1017468,21/06/2017,40660590,"5,205.50 ",MOTT MACDONALD,Economic Development,Consultancy Fees
37UE,Gedling Borough Council,1004037,17/07/2017,40660844,"5,219.46 ",SHOWSEC INTERNATIONAL LTD,Events & Play,Projects & Activities
37UE,Gedling Borough Council,1000734,13/09/2017,40661223,"5,247.64 ",PARTIC MOTOR SPARES LTD.,Sustainability & Asset Management,Vehicles
37UE,Gedling Borough Council,1001069,12/04/2017,40660023,"5,260.00 ",E.B.MASON & SON,Public Protection,Improvement Grants
37UE,Gedling Borough Council,1017512,02/08/2017,40660950,"5,273.18 ",CHAMPION CONTRACT SERVICES LTD,Development Management,Consultancy Fees
37UE,Gedling Borough Council,1002955,12/05/2017,40660228,"5,274.55 ",FRONTLINE RECRUITMENT NOTTINGHAM LTD,Parks,Agency Staff
37UE,Gedling Borough Council,1000244,14/06/2017,40660531,"5,299.00 ",SWEET & MAXWELL LTD.,Legal Services,Books & Publications
37UE,Gedling Borough Council,1017468,14/06/2017,40660531,"5,309.50 ",MOTT MACDONALD,Economic Development,Consultancy Fees
37UE,Gedling Borough Council,1000320,24/05/2017,40660379,"5,324.00 ",HILL BROS  NOTTM  LTD.,Public Protection,Improvement Grants
37UE,Gedling Borough Council,1000189,13/09/2017,40661223,"5,349.00 ",VIRGIN MEDIA LTD,Information Technology,Computing
37UE,Gedling Borough Council,1017334,21/07/2017,40660852,"5,370.00 ",MORGARD COURT LTD T/A GARDNERS,Sustainability & Asset Management,Vehicles
37UE,Gedling Borough Council,1000097,24/07/2017,40660889,"5,392.09 ",NEWARK & SHERWOOD DISTRICT COUNCIL,Organisational Development,Payments To Other Local Authorities
37UE,Gedling Borough Council,1000463,18/08/2017,40661036,"5,433.08 ",WOODWARD BUILDING & PLUMBING SERVS,Public Protection,Improvement Grants
37UE,Gedling Borough Council,1017435,16/06/2017,40660537,"5,449.35 ",ELEANOR STOBART - CONSULTANT,Comm Protection & Dog Control,Crime Prevention
37UE,Gedling Borough Council,1001018,07/06/2017,40660482,"5,550.00 ",FOREST FARM TREE SERVICES,Parks,External Contractor
37UE,Gedling Borough Council,1003243,19/04/2017,40660029,"5,610.00 ",RUSHCLIFFE BOROUGH COUNCIL,Waste Management,External Contractor
37UE,Gedling Borough Council,1017170,21/04/2017,40660068,"5,623.47 ",GEE TEE BUILDING LTD,Public Protection,Improvement Grants
37UE,Gedling Borough Council,1000320,16/08/2017,40661031,"5,701.12 ",HILL BROS  NOTTM  LTD.,Public Protection,Improvement Grants
37UE,Gedling Borough Council,1002955,06/09/2017,40661163,"5,708.38 ",FRONTLINE RECRUITMENT NOTTINGHAM LTD,Waste Management,Agency Staff
37UE,Gedling Borough Council,1017461,03/05/2017,40660153,"5,722.86 ",ASPENLINK LTD,Communications & Publicity,Publications
37UE,Gedling Borough Council,1000627,07/04/2017,40659978,"5,838.78 ",PAGE WHELAN DESIGN & PRINT LTD,Waste Management,Publicity & Promotion
37UE,Gedling Borough Council,1003958,25/08/2017,40661086,"5,850.00 ",RICHARD JANES - ART WORK,The Arts & Tourism,Projects & Activities
37UE,Gedling Borough Council,1000158,24/07/2017,40660890,"5,890.00 ",POST OFFICE LTD,Fleet Management,Vehicle Licences
37UE,Gedling Borough Council,1001160,26/04/2017,40660115,"5,901.00 ",SHERRIFF AMENITY,Parks,General Materials
37UE,Gedling Borough Council,1004688,26/05/2017,40660382,"5,915.03 ",SEC-1,Information Technology,Consultancy Fees
37UE,Gedling Borough Council,1004497,07/04/2017,40659981,"5,967.10 ",NOTTINGHAMSHIRE COUNTY COUNCIL,Business Units,Premises Rents
37UE,Gedling Borough Council,1004497,09/08/2017,40660985,"5,967.10 ",NOTTINGHAMSHIRE COUNTY COUNCIL,Business Units,Premises Rents
37UE,Gedling Borough Council,1017094,26/06/2017,40660644,"5,990.00 ",PULSE FITNESS LTD,Redhill Leisure Centre,D.N.A Expenditure
37UE,Gedling Borough Council,1000370,30/08/2017,40661125,"6,000.00 ",GROUNDWORK GREATER NOTTINGHAM,Parks,Grants
37UE,Gedling Borough Council,1017373,23/06/2017,40660608,"6,000.00 ",VIA EAST MIDLANDS LTD,Parks,External Contractor
37UE,Gedling Borough Council,1005291,05/05/2017,40660159,"6,024.00 ",MOGO ( UK ),Licencing & Hackney Carriages,Licences
37UE,Gedling Borough Council,1000590,12/07/2017,40660780,"6,033.00 ",TRENT VALLEY PLUMBING AND BUILDING LTD,Public Protection,Improvement Grants
37UE,Gedling Borough Council,1005581,26/05/2017,40660382,"6,073.00 ",BOTTOMLINE TECHNOLOGIES LIMITED,Information Technology,Software Licence & Maintenance
37UE,Gedling Borough Council,1017413,09/06/2017,40660485,"6,120.00 ",CRAEMER UK LTD,Waste Services,Stock Account
37UE,Gedling Borough Council,1017455,24/05/2017,40660379,"6,173.00 ",AAT (GB) LTD,Public Protection,Improvement Grants
37UE,Gedling Borough Council,1017373,16/06/2017,40660537,"6,188.00 ",VIA EAST MIDLANDS LTD,Land Charges,Other Services
37UE,Gedling Borough Council,1004160,24/07/2017,40660889,"6,220.00 ",CITY REWINDS & DRIVES LTD,Carlton Forum Leisure Centre,Joint Use maintenance
37UE,Gedling Borough Council,1000001,12/05/2017,40660230,"6,290.00 ",HIGH STREET SOLICITORS,Insurance Premiums,Insurance Claims
37UE,Gedling Borough Council,1017485,03/05/2017,40660153,"6,340.00 ",RISKEX LIMITED,Information Technology,Software Licence & Maintenance
37UE,Gedling Borough Council,1005908,04/08/2017,40660953,"6,402.08 ",NGI (UK) LIMITED,Economic Development,Projects & Activities
37UE,Gedling Borough Council,1005587,04/08/2017,40660953,"6,497.26 ",TOTAL GAS AND POWER,Public Offices,Electricity
37UE,Gedling Borough Council,1017456,19/05/2017,40660312,"6,500.00 ",A&C WEBER UK - ABFALLBEHALTER & CONTAINER WEBER UK LTD,Waste Services,Stock Account
37UE,Gedling Borough Council,1003916,29/09/2017,40661323,"6,510.00 ",PRINT IMAGE NETWORK LTD,Registration Of Electors,Printing
37UE,Gedling Borough Council,1000151,05/06/2017,40660476,"6,560.98 ",THE PERFORMING RIGHT SOCIETY LTD,Carlton Forum Leisure Centre,Licences
37UE,Gedling Borough Council,1002955,19/04/2017,40660029,"6,711.44 ",FRONTLINE RECRUITMENT NOTTINGHAM LTD,Waste Management,Agency Staff
37UE,Gedling Borough Council,1000320,11/08/2017,40660995,"6,858.00 ",HILL BROS  NOTTM  LTD.,Public Protection,Improvement Grants
37UE,Gedling Borough Council,1003916,02/08/2017,40660950,"6,882.30 ",PRINT IMAGE NETWORK LTD,Elections,Printing
37UE,Gedling Borough Council,1002955,04/08/2017,40660953,"7,098.55 ",FRONTLINE RECRUITMENT NOTTINGHAM LTD,Parks,Agency Staff
37UE,Gedling Borough Council,1001675,18/08/2017,40661036,"7,452.00 ",CIVICA UK LTD,Information Technology,Software Licence & Maintenance
37UE,Gedling Borough Council,1001160,07/04/2017,40659978,"7,472.52 ",SHERRIFF AMENITY,Parks,General Materials
37UE,Gedling Borough Council,1000205,19/04/2017,40660029,"7,514.68 ",SEVERN TRENT WATER LTD,Car Parks,Drainage Charges
37UE,Gedling Borough Council,1002955,05/07/2017,40660706,"7,574.23 ",FRONTLINE RECRUITMENT NOTTINGHAM LTD,Parks,Agency Staff
37UE,Gedling Borough Council,1000328,31/05/2017,40660446,"7,600.00 ",MORRIS VERMAPORT LIMITED,Carlton Forum Leisure Centre,Joint Use maintenance
37UE,Gedling Borough Council,1000328,09/08/2017,40660984,"7,600.00 ",MORRIS VERMAPORT LIMITED,Carlton Forum Leisure Centre,Joint Use maintenance
37UE,Gedling Borough Council,1002033,14/08/2017,40661023,"7,788.70 ",TOTAL HYGIENE,Public Protection,Improvement Grants
37UE,Gedling Borough Council,1002955,26/05/2017,40660382,"7,904.26 ",FRONTLINE RECRUITMENT NOTTINGHAM LTD,Waste Management,Agency Staff
37UE,Gedling Borough Council,1004576,13/09/2017,40661223,"7,958.40 ",HEALTHCARE NECESSITIES LTD,Arnold Leisure Centre,Base Budget Maintenance
37UE,Gedling Borough Council,1002955,21/07/2017,40660852,"7,962.22 ",FRONTLINE RECRUITMENT NOTTINGHAM LTD,Parks,Agency Staff
37UE,Gedling Borough Council,1005291,11/08/2017,40660995,"7,968.00 ",MOGO ( UK ),Licencing & Hackney Carriages,Licences
37UE,Gedling Borough Council,1004451,16/06/2017,40660537,"8,005.00 ",DEM ELECTRICAL LTD,Carlton Forum Leisure Centre,General Repairs
37UE,Gedling Borough Council,1000320,15/09/2017,40661225,"8,107.32 ",HILL BROS  NOTTM  LTD.,Public Protection,Improvement Grants
37UE,Gedling Borough Council,1017141,04/09/2017,40661160,"8,215.60 ",GOVDELIVERY INC T/A GOVDELIVERY EUROPE LTD,Information Technology,Software Licence & Maintenance
37UE,Gedling Borough Council,1000833,05/05/2017,40660159,"8,452.30 ",COLONEL FRANK SEELY ACADEMY,Calverton Leisure Centre,Fuel Oil
37UE,Gedling Borough Council,1000599,30/06/2017,40660658,"8,463.00 ",TRENT VALLEY INTERNAL DRAINAGE BOARD,Corporate Income & Expenditure,Drainage Board Levy (Finance)
37UE,Gedling Borough Council,1005764,21/07/2017,40660852,"8,575.01 ",NOTTINGHAMSHIRE COUNTY COUNCIL,Car Parks,Fees&Charges - DS Car Parks
37UE,Gedling Borough Council,1002955,29/09/2017,40661323,"8,668.07 ",FRONTLINE RECRUITMENT NOTTINGHAM LTD,Parks,Agency Staff
37UE,Gedling Borough Council,1017070,22/05/2017,40660365,"8,723.55 ",QUARTIX LIMITED,Fleet Management,Operational Equipment
37UE,Gedling Borough Council,1004497,07/04/2017,40659981,"8,799.77 ",NOTTINGHAMSHIRE COUNTY COUNCIL,Business Units,Premises Rents
37UE,Gedling Borough Council,1001675,06/09/2017,40661163,"9,061.15 ",CIVICA UK LTD,Revenues-Local Taxation,Computing
37UE,Gedling Borough Council,1017468,22/05/2017,40660365,"9,430.00 ",MOTT MACDONALD,Economic Development,Consultancy Fees
37UE,Gedling Borough Council,1001706,09/08/2017,40660984,"9,596.85 ",FERNMAC LIMITED,Car Parks,Maintenance
37UE,Gedling Borough Council,1004691,13/09/2017,40661223,"9,610.00 ",RSM RISK ASSURANCE SERVICES LLP,Financial Services,Consultancy Fees
37UE,Gedling Borough Council,1001214,19/05/2017,40660312,"9,641.67 ",PERRYS EAST MIDLANDS LTD,Sustainability & Asset Management,Vehicles
37UE,Gedling Borough Council,1003035,23/08/2017,40661078,"9,834.67 ",UNIT 4 BUSINESS SOFTWARE LTD,Information Technology,Software Licence & Maintenance
37UE,Gedling Borough Council,1004497,09/08/2017,40660985,"9,834.81 ",NOTTINGHAMSHIRE COUNTY COUNCIL,Business Units,Premises Rents
37UE,Gedling Borough Council,1005955,19/05/2017,40660312,"10,000.00 ",SLACK & ROSE PAINTING AND INTERIORS LTD,Property Services,Miscellaneous Capital Expenses
37UE,Gedling Borough Council,1005970,23/06/2017,40660608,"10,000.00 ",WE R HERE,Comm Protection & Dog Control,Crime Prevention
37UE,Gedling Borough Council,1000140,12/04/2017,40660023,"10,062.00 ",PAPPLEWICK PARISH COUNCIL,Corporate Income & Expenditure,Parish Precepts
37UE,Gedling Borough Council,1017413,19/05/2017,40660312,"10,098.00 ",CRAEMER UK LTD,Waste Management,Bin Purchases
37UE,Gedling Borough Council,1017499,20/09/2017,40661255,"10,112.25 ",M & J GROUP (CONSTRUCTION & ROOFING) LTD,Leisure & Culture,Miscellaneous Capital Expenses
37UE,Gedling Borough Council,1000463,07/07/2017,40660736,"10,177.92 ",WOODWARD BUILDING & PLUMBING SERVS,Public Protection,Improvement Grants
37UE,Gedling Borough Council,1000522,12/05/2017,40660228,-654.00 ,LOCAL GOVERNMENT ASSOCIATION,Corporate Finance,Subscriptions
37UE,Gedling Borough Council,1000522,12/05/2017,40660228,"10,450.00 ",LOCAL GOVERNMENT ASSOCIATION,Corporate Management,Subscriptions
37UE,Gedling Borough Council,1001024,08/05/2017,40660162,"10,495.00 ",CAPITA BUSINESS SERVICES LTD,Information Technology,Software Licence & Maintenance
37UE,Gedling Borough Council,1000028,12/04/2017,40660023,"10,567.00 ",LINBY PARISH COUNCIL,Corporate Income & Expenditure,Parish Precepts
37UE,Gedling Borough Council,1017413,04/08/2017,40660953,"10,710.00 ",CRAEMER UK LTD,Waste Services,Stock Account
37UE,Gedling Borough Council,1003486,19/05/2017,40660312,"10,750.00 ",AIRQUEE,Calverton Leisure Centre,Base Budget Maintenance
37UE,Gedling Borough Council,1001852,21/04/2017,40660068,"10,760.39 ",IDOX SOFTWARE LTD,Information Technology,Software Licence & Maintenance
37UE,Gedling Borough Council,1000081,02/06/2017,40660453,"11,114.40 ",BROXTOWE BOROUGH COUNCIL,Housing Needs,Projects & Activities
37UE,Gedling Borough Council,1003916,21/07/2017,40660852,"11,408.42 ",PRINT IMAGE NETWORK LTD,Elections,Printing
37UE,Gedling Borough Council,1000052,26/07/2017,40660896,"11,476.26 ",NORTHGATEARINSO,Information Technology,Software Licence & Maintenance
37UE,Gedling Borough Council,1001675,21/06/2017,40660593,"11,730.88 ",CIVICA UK LTD,Information Technology,Software Licence & Maintenance
37UE,Gedling Borough Council,1005684,07/08/2017,40660977,"12,343.26 ",PRINT IMAGE FACILITIES LLP,Registration Of Electors,Postages
37UE,Gedling Borough Council,1000833,03/05/2017,40660153,"13,000.00 ",COLONEL FRANK SEELY ACADEMY,Calverton Leisure Centre,Fees&Charges - Leisure Centres
37UE,Gedling Borough Council,1004518,30/08/2017,40661125,"13,283.00 ",KPMG LLP,Corporate Management,Financial Services
37UE,Gedling Borough Council,1001764,10/07/2017,40660778,"13,520.00 ",DOLPHIN MOBILITY EAST MIDLANDS LTD,Public Protection,Improvement Grants
37UE,Gedling Borough Council,1001706,17/05/2017,40660270,"13,620.00 ",FERNMAC LIMITED,Parks,General Repairs
37UE,Gedling Borough Council,1004577,19/04/2017,40660029,"13,644.00 ",GEDLING HOMES (NEW CHARTER),Public Protection,Improvement Grants
37UE,Gedling Borough Council,1004577,30/06/2017,40660658,"13,644.00 ",GEDLING HOMES (NEW CHARTER),Public Protection,Improvement Grants
37UE,Gedling Borough Council,1017413,11/09/2017,40661212,"13,910.00 ",CRAEMER UK LTD,Waste Services,Stock Account
37UE,Gedling Borough Council,1000126,12/04/2017,40660023,"14,424.00 ",CALVERTON PARISH COUNCIL,Community Grants,Grants
37UE,Gedling Borough Council,1001699,24/05/2017,40660379,"14,511.98 ",ELLIOTT GROUP LTD,Property Services,Miscellaneous Capital Expenses
37UE,Gedling Borough Council,1005715,21/04/2017,40660068,"14,645.00 ",XPRESS SOFTWARE SOLUTIONS LTD,Information Technology,Software Licence & Maintenance
37UE,Gedling Borough Council,1000100,12/04/2017,40660023,"14,762.00 ",NEWSTEAD PARISH COUNCIL,Corporate Income & Expenditure,Parish Precepts
37UE,Gedling Borough Council,1017400,15/09/2017,40661225,"14,812.00 ",REACT PROPERTY MAINTENANCE,Public Protection,Improvement Grants
37UE,Gedling Borough Council,1005955,14/06/2017,40660531,"14,985.00 ",SLACK & ROSE PAINTING AND INTERIORS LTD,Property Services,Miscellaneous Capital Expenses
37UE,Gedling Borough Council,1000020,12/04/2017,40660023,"15,502.00 ",LAMBLEY PARISH COUNCIL,Corporate Income & Expenditure,Parish Precepts
37UE,Gedling Borough Council,1002955,25/08/2017,40661086,"15,692.67 ",FRONTLINE RECRUITMENT NOTTINGHAM LTD,Parks,Agency Staff
37UE,Gedling Borough Council,1004577,21/07/2017,40660852,"15,850.00 ",GEDLING HOMES (NEW CHARTER),Public Protection,Improvement Grants
37UE,Gedling Borough Council,1001675,09/08/2017,40660984,"15,941.00 ",CIVICA UK LTD,Housing Benefit Administration,Consultancy Fees
37UE,Gedling Borough Council,1004777,27/09/2017,40661317,"16,551.50 ",CALE ACCESS UK LTD,Car Parks,External Contractor
37UE,Gedling Borough Council,1003243,10/07/2017,40660778,"17,878.79 ",RUSHCLIFFE BOROUGH COUNCIL,Financial Services,Payments To Other Local Authorities
37UE,Gedling Borough Council,1000001,15/05/2017,40660236,"18,037.00 ",HIGH STREET SOLICITORS,Insurance Premiums,Insurance Claims
37UE,Gedling Borough Council,1005233,29/09/2017,40661323,"18,731.25 ","OPEN BOOK INTERNATIONAL LTD, T/A PRACTICAL AV",Leisure & Culture,Miscellaneous Capital Expenses
37UE,Gedling Borough Council,1003916,30/06/2017,40660658,"19,267.59 ",PRINT IMAGE NETWORK LTD,Elections,Printing
37UE,Gedling Borough Council,1005902,21/08/2017,40661066,"19,985.00 ",OBAM LIFT SERVICES LTD,Public Protection,Improvement Grants
37UE,Gedling Borough Council,1000107,31/05/2017,40660446,"21,054.00 ",NOTTINGHAM CITY COUNCIL,Parks & Street Care,Miscellaneous Capital Expenses
37UE,Gedling Borough Council,1005277,01/09/2017,40661133,"21,285.00 ",BARTEC AUTO ID LIMITED,Information Technology,Software Licence & Maintenance
37UE,Gedling Borough Council,1001739,12/05/2017,40660228,"22,500.00 ",P S MARSDEN (LAWNMOWER SERVICES) LTD,Sustainability & Asset Management,Vehicles
37UE,Gedling Borough Council,1017517,04/08/2017,40660953,"23,182.00 ",B&M INSTALLATIONS LTD,Property Services,Miscellaneous Capital Expenses
37UE,Gedling Borough Council,1005684,14/07/2017,40660789,"24,048.78 ",PRINT IMAGE FACILITIES LLP,Elections,Postages
37UE,Gedling Borough Council,1005684,12/04/2017,40660023,"24,139.13 ",PRINT IMAGE FACILITIES LLP,Elections,Postages
37UE,Gedling Borough Council,1000822,20/09/2017,40661255,"29,547.57 ",CENTRAL SECURITY SYSTEMS LIMITED,Comm Protection & Dog Control,Operational Equipment
37UE,Gedling Borough Council,1000108,12/04/2017,40660023,"29,905.00 ",BESTWOOD ST ALBANS PARISH COUNCIL,Corporate Income & Expenditure,Parish Precepts
37UE,Gedling Borough Council,1000170,12/04/2017,40660023,"30,950.00 ",COLWICK PARISH COUNCIL,Corporate Income & Expenditure,Parish Precepts
37UE,Gedling Borough Council,1005642,30/08/2017,40661125,"32,040.08 ",CERTAS ENERGY UK LTD T/A PACE FUELCARE,Sustainability & Asset Management,Stock received not invoiced
37UE,Gedling Borough Council,1005642,10/05/2017,40660227,"32,697.00 ",CERTAS ENERGY UK LTD T/A PACE FUELCARE,Sustainability & Asset Management,Stock received not invoiced
37UE,Gedling Borough Council,1005642,14/06/2017,40660531,"33,056.91 ",CERTAS ENERGY UK LTD T/A PACE FUELCARE,Sustainability & Asset Management,Stock received not invoiced
37UE,Gedling Borough Council,1017517,08/09/2017,40661167,"33,798.00 ",B&M INSTALLATIONS LTD,Property Services,Miscellaneous Capital Expenses
37UE,Gedling Borough Council,1005642,26/07/2017,40660896,"35,379.00 ",CERTAS ENERGY UK LTD T/A PACE FUELCARE,Sustainability & Asset Management,Stock received not invoiced
37UE,Gedling Borough Council,1000370,05/05/2017,40660159,"41,000.00 ",GROUNDWORK GREATER NOTTINGHAM,Parks,Maintenance
37UE,Gedling Borough Council,1001706,26/07/2017,40660896,"44,790.92 ",FERNMAC LIMITED,Financial Services,Miscellaneous Capital Expenses
37UE,Gedling Borough Council,1001852,21/04/2017,40660068,"45,812.29 ",IDOX SOFTWARE LTD,Information Technology,Operational Equipment
37UE,Gedling Borough Council,1017445,26/04/2017,40660115,"48,300.00 ",T.C. HARRISON JCB,Sustainability & Asset Management,Vehicles
37UE,Gedling Borough Council,1017152,09/06/2017,40660485,"48,435.00 ",PROLUDIC LIMITED,Parks & Street Care,Miscellaneous Capital Expenses
37UE,Gedling Borough Council,1017094,17/05/2017,40660270,"48,575.00 ",PULSE FITNESS LTD,Leisure & Culture,Miscellaneous Capital Expenses
37UE,Gedling Borough Council,1017443,26/05/2017,40660382,"57,543.35 ",WARMER ENERGY SERVICES LIMITED,Leisure & Culture,Ancilliary Costs
37UE,Gedling Borough Council,1000272,12/04/2017,40660023,"67,645.00 ",WOODBOROUGH PARISH COUNCIL,Corporate Income & Expenditure,Parish Precepts
37UE,Gedling Borough Council,1017134,10/04/2017,40660018,"71,799.00 ",HAGS - SMP LIMITED,Community Relations,Miscellaneous Capital Expenses
37UE,Gedling Borough Council,1017386,26/07/2017,40660896,"81,473.63 ",G F TOMLINSON BUILDING LTD,Parks & Street Care,Miscellaneous Capital Expenses
37UE,Gedling Borough Council,1001214,16/06/2017,40660537,"88,965.15 ",PERRYS EAST MIDLANDS LTD,Sustainability & Asset Management,Vehicles
37UE,Gedling Borough Council,1017499,01/09/2017,40661133,"116,581.32 ",M & J GROUP (CONSTRUCTION & ROOFING) LTD,Leisure & Culture,Miscellaneous Capital Expenses
37UE,Gedling Borough Council,1000613,12/04/2017,40660023,"125,928.00 ",RAVENSHEAD PARISH COUNCIL,Corporate Income & Expenditure,Parish Precepts
37UE,Gedling Borough Council,1017386,03/05/2017,40660153,"129,425.51 ",G F TOMLINSON BUILDING LTD,Parks & Street Care,Miscellaneous Capital Expenses
37UE,Gedling Borough Council,1000440,28/04/2017,40660124,"-9,898.57 ",NOTTINGHAMSHIRE COUNTY COUNCIL,Trade Waste,Other Services
37UE,Gedling Borough Council,1000440,28/04/2017,40660124,"133,468.19 ",NOTTINGHAMSHIRE COUNTY COUNCIL,Trade Waste,Other Services
37UE,Gedling Borough Council,1000088,12/04/2017,40660023,"143,406.00 ",BURTON JOYCE PARISH COUNCIL,Corporate Income & Expenditure,Parish Precepts
37UE,Gedling Borough Council,1017499,21/07/2017,40660852,"172,150.25 ",M & J GROUP (CONSTRUCTION & ROOFING) LTD,Leisure & Culture,Miscellaneous Capital Expenses
37UE,Gedling Borough Council,1000126,12/04/2017,40660023,"184,500.00 ",CALVERTON PARISH COUNCIL,Corporate Income & Expenditure,Parish Precepts
37UE,Gedling Borough Council,1017386,26/05/2017,40660382,"245,925.96 ",G F TOMLINSON BUILDING LTD,Parks & Street Care,Miscellaneous Capital Expenses
37UE,Gedling Borough Council,1017386,30/06/2017,40660658,"250,000.00 ",G F TOMLINSON BUILDING LTD,Parks & Street Care,Miscellaneous Capital Expenses
37UE,Gedling Borough Council,1000559,24/05/2017,40660379,"305,399.57 ",ZURICH INSURANCE COMPANY,Insurance Premiums,Insurance Premiums
37UE,Gedling Borough Council,1000440,10/07/2017,40660778,"377,691.00 ",NOTTINGHAMSHIRE COUNTY COUNCIL,Financial Services,Adj re previous year
